Workbook

Sheet Intro.
P4: Updated Jan. 2015
B5: Basic Design Spreadsheet for Small Residential Systems
C7: This spreadsheet serves as a guide for small systems, and is not a complete hydraulic design. Please check parameters for large systems.
C9: The green tabs below are the worksheets, and the purple tabs are the tables including parts data.
C10: Shaded cells on the worksheets | D10: require inputs from you. | I10: shaded | J10: unshaded
C11: Scroll mouse over small red flags to see associated Notes
C13: "Worksheet 1 - Field Calculation" is your starting point. It will help you determine how much flow is required
C14: to disperse a given amount of effluent in a given soil. These calculations are based on using secondary treated wastewater.
C15: You can play with the dripline and spacing to increase or decrease the flow per minute.
C16: Note at the bottom of this worksheet is a small spreadsheet used to determine if there is enough time in the day to disperse the effluent with
C17: the chosen zone, dripline and spacing configurations.
C18: This program makes the assumption that all zones are equal in size. If not, run the program zone by zone
C20: "Worksheet 2 - Pump Sizing" adds the pressure required to the flow rates as figured in Worksheet 1 so pumps can be selected.
C23: Note: These spreadsheets do allow for increased flow for flushing as required by some regulatotory authorities.
C24: For more comprehensive flushing velocity head losses please see Geoflow's Flow and Flush Spreadsheet.
C26: Should you have any questions, please call 800-828-3388 9am - 5pm Pacific time, or call your local representative.
C27: www.geoflow.com
C29: Updates to this spreadsheet are regularly available at www.geoflow.com

Sheet Macros (hidden)
A1: MACROS - DO NOT CHANGE THE DATA ON THIS FORM. THIS DATA IS USED IN YOUR WORKSHEET!
A3: Dripline Box | F3: E24 Dripline Multizone Column | J3: D21 Dripline Spacing Box
A4: Wasteflow Classic | F4: =IF('Worksht1 - Field Flow'!$E$25=2,"Wasteflow PC 1/2 gph",F5) -> Consult factory | J4: 1 | K4: 0.5 ft. | L4: 2
A5: Wasteflow PC - 1/2gph | F5: =IF('Worksht1 - Field Flow'!$E$25=3,"Wasteflow PC 1 gph",F6) -> Consult factory | J5: 2 | K5: 1 ft. | L5: =IF(L4=2,1,L6) -> 1
A6: Wasteflow PC - 1 gph | F6: Consult factory | J6: 3 | K6: 1.5 ft. | L6: =IF(L4=3,1.5,L7) -> Consult factory
J7: 4 | K7: 2 ft. | L7: =IF(L4=4,2,L8) -> Consult factory
A8: D26 Pressure | L8: Consult factory
A9: 1 | B9: 10 | C9: 3
A10: 2 | B10: 15 | C10: =IF(Macros!$C$9=2,15,C11) -> 20
A11: 3 | B11: 20 | C11: =IF(Macros!$C$9=3,20,C12) -> 20
A12: 4 | B12: 25 | C12: =IF(Macros!$C$9=4,25,C13) -> Consult factory
A13: 5 | B13: 30 | C13: =IF(Macros!$C$9=5,30,C14) -> Consult factory
A14: 6 | B14: 35 | C14: =IF(Macros!$C$9=6,35,C15) -> Consult factory
A15: 7 | B15: 40 | C15: =IF(Macros!$C$9=7,40,C16) -> Consult factory
A16: 8 | B16: 45 | C16: =IF(Macros!$C$9=8,45,C17) -> Consult factory
C17: Consult factory
A20: A28 Emitter Flow Rate
A21: =IF('Worksht1 - Field Flow'!$E$25=A4,B21,A22) -> Check dripline tables | B21: =IF('Worksht1 - Field Flow'!E30=10,0.81,C21) -> 1.16 | C21: =IF('Worksht1 - Field Flow'!E30=15,1,D21) -> 1.16 | D21: =IF('Worksht1 - Field Flow'!E30=20,1.16,E21) -> 1.16 | E21: =IF('Worksht1 - Field Flow'!E30=25,1.31,F21) -> Call Geoflow | F21: =IF('Worksht1 - Field Flow'!E30=30,1.44,G21) -> Call Geoflow | G21: =IF('Worksht1 - Field Flow'!E30=35,1.57,H21) -> Call Geoflow | H21: =IF('Worksht1 - Field Flow'!E30=40,1.68,I21) -> Call Geoflow | I21: =IF('Worksht1 - Field Flow'!E30=45,1.8,J21) -> Call Geoflow | J21: =IF('Worksht1 - Field Flow'!E30=50,1.92,K21) -> Call Geoflow | K21: Call Geoflow
A22: =IF('Worksht1 - Field Flow'!E25=A6,1.02,A23) -> Check dripline tables
A23: Check dripline tables
A25: E31 Multizone Pipe size
A26: =IF('Worksht2 - Pump Sizing'!D18<=3.999,".5",A27) -> .5 | B26: =IF('Worksht2 - Pump Sizing'!D17<=3.999,".5",B27) -> .5 | E26: PMR 15 | F26: 15
A27: =IF('Worksht2 - Pump Sizing'!D18<=5,".75",A28) -> .75 | B27: =IF('Worksht2 - Pump Sizing'!D17<=5,".75",B28) -> .75 | E27: PMR 20 | F27: 20
A28: =IF('Worksht2 - Pump Sizing'!D18<=10,"1",A29) -> 1 | B28: =IF('Worksht2 - Pump Sizing'!D17<=10,"1",B29) -> 1 | E28: PMR 25 | F28: 25
A29: =IF('Worksht2 - Pump Sizing'!D18<=20,"1.25",A30) -> 1.25 | B29: =IF('Worksht2 - Pump Sizing'!D17<=20,"1.25",B30) -> 1.25 | E29: PMR 30 | F29: 30
A30: =IF('Worksht2 - Pump Sizing'!D18<=30,"1.5",A31) -> 1.5 | B30: =IF('Worksht2 - Pump Sizing'!D17<=30,"1.5",B31) -> 1.5 | E30: PMR 35 | F30: 35
A31: =IF('Worksht2 - Pump Sizing'!D18<=50,"2",A32) -> 2 | B31: =IF('Worksht2 - Pump Sizing'!D17<=50,"2",B32) -> 2 | E31: PMR 40 | F31: 40
A32: =IF('Worksht2 - Pump Sizing'!D18<=70,"2.5",A33) -> 2.5 | B32: =IF('Worksht2 - Pump Sizing'!D17<=70,"2.5",B33) -> 2.5 | E32: PMR 45 | F32: 45
A33: =IF('Worksht2 - Pump Sizing'!D18<=100,"3",A34) -> 3 | B33: =IF('Worksht2 - Pump Sizing'!D17<=100,"3",B34) -> 3 | E33: PMR 50 | F33: 50
A34: =IF('Worksht2 - Pump Sizing'!D18<=175,"4",A35) -> 4 | B34: =IF('Worksht2 - Pump Sizing'!D17<=175,"4",B35) -> 4
A35: =IF('Worksht2 - Pump Sizing'!D18<=200,"6","Flow exceeds capacity of spreadsheet") -> 6 | B35: =IF('Worksht2 - Pump Sizing'!D17<=200,"6","Flow exceeds capacity of spreadsheet") -> 6
A37: Select Filter
A38: Vortex Screen Filter
A39: BioDisc Filter
A40: BioDisc Self Flushing Battery
F41: 55 | G41: 84 | H41: 110
A42: E30 Filter selection
A43: =IF('Worksht1 - Field Flow'!$E$45=Macros!A38,Macros!B44,Macros!A49) -> ConsultFActory
A44: Vortex Filters | B44: =IF('Worksht1 - Field Flow'!$E$14<=350,C44,D44) -> AP4E-1.5F | C44: =IF('Worksht1 - Field Flow'!$E$43<=20,A45,D44) -> AP4E-1F | D44: =IF('Worksht1 - Field Flow'!$E$43<=45,A46,E44) -> AP4E-1.5F | E44: =IF('Worksht1 - Field Flow'!$E$43<=70,A47,#REF!) -> AP4E-2F | F44: Consult Factory
A45: AP4E-1F | B45: 1in Screen Filter 0-20gpm
A46: AP4E-1.5F | B46: 1.5in Screen Filter 0-45gpm | C46: =IF('Worksht1 - Field Flow'!$E$46=Macros!A46,Macros!B45,Macros!C47) -> Select
A47: AP4E-2F | B47: 2in Screen Filter 30-70gpm | C47: =IF('Worksht1 - Field Flow'!$E$46=Macros!A47,Macros!B46,Macros!C48) -> Select
A48: AP4E-2F | C48: =IF('Worksht1 - Field Flow'!$E$46=Macros!A48,Macros!B47,Macros!C51) -> Select
A49: =IF('Worksht1 - Field Flow'!E45=Macros!A39,B50,A56) -> ConsultFActory
A50: BioDisc Filter | B50: =IF('Worksht1 - Field Flow'!$E$14>2500,"Call Geoflow",C50) -> BioDisc Filter-150 | C50: =IF('Worksht1 - Field Flow'!$E$33<=30,A51,D50) -> BioDisc Filter-150 | D50: =IF('Worksht1 - Field Flow'!$E$33<=60,A52,E50) -> BioDisc Filter-200 | E50: Flow Rate Too High
A51: BioDisc Filter-150 | B51: 1.5in < 30 gpm | C51: =IF('Worksht1 - Field Flow'!$E$46=Macros!A51,Macros!B51,Macros!C52) -> Select
A52: BioDisc Filter-200 | B52: 2in 30-60 gpm | C52: =IF('Worksht1 - Field Flow'!$E$46=Macros!A52,Macros!B52,Macros!C53) -> Select
C53: =IF('Worksht1 - Field Flow'!$E$46=Macros!A53,Macros!B53,Macros!C54) -> Select
C54: =IF('Worksht1 - Field Flow'!$E$46=Macros!A54,Macros!B54,Macros!C55) -> Select
C55: =IF('Worksht1 - Field Flow'!$E$46=Macros!A55,Macros!B55,Macros!C59) -> Select
A56: =IF('Worksht1 - Field Flow'!E45=Macros!A40,B57,"ConsultFActory") -> ConsultFActory
A57: BioDisc Battery | B57: =IF('Worksht1 - Field Flow'!$E$43<=35,A59,C57) -> BioDisc Battery 2 | C57: =IF('Worksht1 - Field Flow'!$E$43<=70,A59,D57) -> BioDisc Battery 2 | D57: =IF('Worksht1 - Field Flow'!$E$43<=140,A60,E57) -> BioDisc Battery 4 | E57: =IF('Worksht1 - Field Flow'!$E$43<=210,A61,F57) -> BioDisc Battery 6 | F57: =IF('Worksht1 - Field Flow'!$E$43<=280,A62,G57) -> BioDisc Battery 8 | G57: Consult factory
A58: Biodisc Battery requires 40gpm/40psi to flush
A59: BioDisc Battery 2 | B59: 40-70 gpm / 40 psi | C59: =IF('Worksht1 - Field Flow'!$E$46=Macros!A59,Macros!B59,Macros!C60) -> Select
A60: BioDisc Battery 4 | B60: 40-140 gpm 40 psi | C60: =IF('Worksht1 - Field Flow'!$E$46=Macros!A60,Macros!B60,Macros!C61) -> Select
A61: BioDisc Battery 6 | B61: 40-210 gpm 40psi | C61: Select
A62: BioDisc Battery 8 | B62: 40-280 gpm 40psi
A64: E35 Multizone Valve selection
A65: Hydraulic
A66: Electric Solenoid
A67: None
A68: =IF('Worksht1 - Field Flow'!E47="Select","Select valve above",Macros!A69) -> SVLVB-100
A69: =IF('Worksht1 - Field Flow'!E47=Macros!A67,0,Macros!A70) -> SVLVB-100 | F69: =IF('Worksht1 - Field Flow'!E47=Macros!A65,Macros!F70,"call Geoflow") -> call Geoflow
A70: =IF('Worksht1 - Field Flow'!E47=Macros!A66,Macros!A71,F69) -> SVLVB-100 | F70: =IF('Worksht1 - Field Flow'!$E$19=1,"No valve required",Macros!F71) -> No valve required | H70: No zone valve required
A71: =IF('Worksht1 - Field Flow'!$E$43<=25,B72,A72) -> SVLVB-100 | F71: =IF('Worksht1 - Field Flow'!$E$19=2,H71,Macros!F72) -> Check zone quantity | H71: HT-4402 | I71: HT-4402-RCW | J71: 2 zone Index valve 1.25x1.25", 25-75psi, >9gpm | K71: =IF('Worksht1 - Field Flow'!$E$48=Macros!H71,Macros!J71,Macros!K72) -> 0
A72: =IF('Worksht1 - Field Flow'!$E$43<=90,B73,A73) -> SVLVB-150 | B72: ='T3-Valves'!B4 -> SVLVB-100 | C72: 1-in. Solenoid valve | F72: =IF('Worksht1 - Field Flow'!$E$19=3,H72,Macros!F73) -> Check zone quantity | H72: HT-4403 | I72: HT-4403-RCW | J72: 3 zone Index valve 1.25x1.25", 25-75psi, >9gpm | K72: =IF('Worksht1 - Field Flow'!$E$48=Macros!H72,Macros!J72,Macros!K73) -> 0
A73: =IF('Worksht1 - Field Flow'!$E$43<=200,B74,A74) -> SVLVB-200 | B73: ='T3-Valves'!B5 -> SVLVB-150 | C73: 1.5-in. Solenoid valve | D73: =IF('Worksht1 - Field Flow'!$E$48=Macros!B73,Macros!C73,Macros!D74) -> 0 | F73: =IF('Worksht1 - Field Flow'!$E$19=4,H73,Macros!F74) -> Check zone quantity | H73: HT-4404 | I73: HT-4404-RCW | J73: 4 zone Index valve 1.25x1.25", 25-75psi, >9gpm | K73: =IF('Worksht1 - Field Flow'!$E$48=Macros!H73,Macros!J73,Macros!K74) -> 0
A74: =IF('Worksht1 - Field Flow'!$E$43<=400,B75,A75) -> SVLVB-300 | B74: ='T3-Valves'!B6 -> SVLVB-200 | C74: 2-in. Solenoid valve | D74: =IF('Worksht1 - Field Flow'!$E$48=Macros!B74,Macros!C74,Macros!D75) -> 0 | F74: =IF('Worksht1 - Field Flow'!$E$19=5,H74,Macros!F75) -> Check zone quantity | H74: HT-4605 | J74: 5 zone Index valve 1.25x1", 25-75psi, >9gpm | K74: =IF('Worksht1 - Field Flow'!$E$48=Macros!H74,Macros!J74,Macros!K75) -> 0
A75: Flow too high for this spreadsheet | B75: ='T3-Valves'!B7 -> SVLVB-300 | C75: 3-in. Solenoid valve | D75: =IF('Worksht1 - Field Flow'!$E$48=Macros!B75,Macros!C75,Macros!K71) -> 0 | F75: =IF('Worksht1 - Field Flow'!$E$19=6,H75,Macros!F76) -> Check zone quantity | H75: HT-4606 | J75: 6 zone Index valve 1.25x1", 25-75psi, >9gpm | K75: =IF('Worksht1 - Field Flow'!$E$48=Macros!H75,Macros!J75,Macros!K76) -> 0
F76: =IF('Worksht1 - Field Flow'!$E$19>6,"Max of 6 zones","Check zone quantity") -> Check zone quantity
I77: Single Hydrotek has 6 zones max
I78: Hydrotech valve min flow rate = 10gpm
I79: HT-4602-RCW | J79: 2 zone Hydratek valve 1.25" x 1", 25-75psi, min10gpm
I80: HT-4603-RCW | J80: 3 zone Hydratek valve 1.25" x 1", 25-75psi, min10gpm
I81: HT-4604-RCW | J81: 4 zone Hydratek valve 1.25" x 1", 25-75psi, min10gpm
A88: D33 Max length of run
A89: Classic | B89: PC 1/2 gph | F89: PC 1 gph
B90: 6" | C90: 12" | D90: 18" | E90: 24" | F90: 6" | G90: 12" | H90: 18" | I90: 24"
A91: =IF('Worksht1 - Field Flow'!$E$25=A4,A92,B91) -> 424 | B91: =IF('Worksht1 - Field Flow'!$E$25=A5,B92,F91) -> 424 | F91: =IF('Worksht1 - Field Flow'!$E$25=A6,F92,"Check Dripline") -> Check Dripline
A92: =IF('Worksht1 - Field Flow'!$E$22=1,120,A93) -> 210 | B92: =IF('Worksht1 - Field Flow'!$E$22=0.5,B93,C92) -> 424 | C92: =IF('Worksht1 - Field Flow'!$E$22=1,C93,D92) -> 424 | D92: =IF('Worksht1 - Field Flow'!$E$22=1.5,D93,E92) -> 424 | E92: =IF('Worksht1 - Field Flow'!$E$22=2,E93,"Phone Geoflow") -> 424 | F92: =IF('Worksht1 - Field Flow'!$E$22=0.5,F93,G92) -> 265 | G92: =IF('Worksht1 - Field Flow'!$E$22=1,G93,H92) -> 265 | H92: =IF('Worksht1 - Field Flow'!$E$22=1.5,H93,I92) -> 265 | I92: =IF('Worksht1 - Field Flow'!$E$22=2,I93,"Check dripline spacing") -> 265
A93: =IF('Worksht1 - Field Flow'!$E$22=1.5,208,A94) -> 210 | B93: =IF('Worksht1 - Field Flow'!E30=10,50,B94) -> 100 | C93: =IF('Worksht1 - Field Flow'!E30=10,150,C94) -> 229 | D93: =IF('Worksht1 - Field Flow'!E30=10,200,D94) -> 330 | E93: =IF('Worksht1 - Field Flow'!E30=10,280,E94) -> 424 | F93: =IF('Worksht1 - Field Flow'!E30=10,50,F94) -> 75 | G93: =IF('Worksht1 - Field Flow'!E30=10,95,G94) -> 146 | H93: =IF('Worksht1 - Field Flow'!E30=10,120,H94) -> 210 | I93: =IF('Worksht1 - Field Flow'!E30=10,175,I94) -> 265 | J93: 10 PSI
A94: =IF('Worksht1 - Field Flow'!$E$22=2,210,A95) -> 210 | B94: =IF('Worksht1 - Field Flow'!E30=15,100,B95) -> 100 | C94: =IF('Worksht1 - Field Flow'!E30=15,174,C95) -> 229 | D94: =IF('Worksht1 - Field Flow'!E30=15,260,D95) -> 330 | E94: =IF('Worksht1 - Field Flow'!E30=15,321,E95) -> 424 | F94: =IF('Worksht1 - Field Flow'!E30=15,60,F95) -> 75 | G94: =IF('Worksht1 - Field Flow'!E30=15,115,G95) -> 146 | H94: =IF('Worksht1 - Field Flow'!E30=15,172,H95) -> 210 | I94: =IF('Worksht1 - Field Flow'!E30=15,211,I95) -> 265 | J94: 15 PSI
A95: =IF('Worksht1 - Field Flow'!$E$22=0.5,"6-in Classic not avail.","Phone Geoflow") -> Phone Geoflow | B95: =IF('Worksht1 - Field Flow'!E30=20,100,B96) -> 100 | C95: =IF('Worksht1 - Field Flow'!E30=20,229,C96) -> 229 | D95: =IF('Worksht1 - Field Flow'!E30=20,330,D96) -> 330 | E95: =IF('Worksht1 - Field Flow'!E30=20,424,E96) -> 424 | F95: =IF('Worksht1 - Field Flow'!E30=20,75,F96) -> 75 | G95: =IF('Worksht1 - Field Flow'!E30=20,146,G96) -> 146 | H95: =IF('Worksht1 - Field Flow'!E30=20,210,H96) -> 210 | I95: =IF('Worksht1 - Field Flow'!E30=20,265,I96) -> 265 | J95: 20 PSI
B96: =IF('Worksht1 - Field Flow'!E30=25,140,B97) -> Check Pressure | C96: =IF('Worksht1 - Field Flow'!E30=25,260,C97) -> Check Pressure | D96: =IF('Worksht1 - Field Flow'!E30=25,377,D97) -> Check pressure | E96: =IF('Worksht1 - Field Flow'!E30=25,478,E97) -> Check Pressure | F96: =IF('Worksht1 - Field Flow'!E30=25,85,F97) -> Check pressure | G96: =IF('Worksht1 - Field Flow'!E30=25,171,G97) -> Check Pressure | H96: =IF('Worksht1 - Field Flow'!E30=25,242,H97) -> Check Pressure | I96: =IF('Worksht1 - Field Flow'!E30=25,315,I97) -> Phone Geoflow | J96: 25 PSI
B97: =IF('Worksht1 - Field Flow'!E30=30,150,B98) -> Check Pressure | C97: =IF('Worksht1 - Field Flow'!E30=30,288,C98) -> Check Pressure | D97: =IF('Worksht1 - Field Flow'!E30=30,415,D98) -> Check pressure | E97: =IF('Worksht1 - Field Flow'!E30=30,535,E98) -> Check Pressure | F97: =IF('Worksht1 - Field Flow'!E30=30,95,F98) -> Check pressure | G97: =IF('Worksht1 - Field Flow'!E30=30,180,G98) -> Check Pressure | H97: =IF('Worksht1 - Field Flow'!E30=30,266,H98) -> Check Pressure | I97: =IF('Worksht1 - Field Flow'!E30=30,335,I98) -> Phone Geoflow | J97: 30 PSI
B98: =IF('Worksht1 - Field Flow'!E30=35,160,B99) -> Check Pressure | C98: =IF('Worksht1 - Field Flow'!E30=35,313,C99) -> Check Pressure | D98: =IF('Worksht1 - Field Flow'!E30=35,448,D99) -> Check pressure | E98: =IF('Worksht1 - Field Flow'!E30=35,576,E99) -> Check Pressure | F98: =IF('Worksht1 - Field Flow'!E30=35,100,F99) -> Check pressure | G98: =IF('Worksht1 - Field Flow'!E30=35,199,G99) -> Check Pressure | H98: =IF('Worksht1 - Field Flow'!E30=35,287,H99) -> Check Pressure | I98: =IF('Worksht1 - Field Flow'!E30=35,379,I99) -> Phone Geoflow | J98: 35 PSI
B99: =IF('Worksht1 - Field Flow'!E30=40,170,B100) -> Check Pressure | C99: =IF('Worksht1 - Field Flow'!E30=40,330,C100) -> Check Pressure | D99: =IF('Worksht1 - Field Flow'!E30=40,475,D100) -> Check pressure | E99: =IF('Worksht1 - Field Flow'!E30=40,612,E100) -> Check Pressure | F99: =IF('Worksht1 - Field Flow'!E30=40,108,F100) -> Check pressure | G99: =IF('Worksht1 - Field Flow'!E30=40,211,G100) -> Check Pressure | H99: =IF('Worksht1 - Field Flow'!E30=40,305,H100) -> Check Pressure | I99: =IF('Worksht1 - Field Flow'!E30=40,385,I100) -> Phone Geoflow | J99: 40 PSI
B100: =IF('Worksht1 - Field Flow'!E30=45,180,B101) -> Check Pressure | C100: =IF('Worksht1 - Field Flow'!E30=45,354,C101) -> Check Pressure | D100: =IF('Worksht1 - Field Flow'!E30=45,500,D101) -> Check pressure | E100: =IF('Worksht1 - Field Flow'!E30=45,651,E101) -> Check Pressure | F100: =IF('Worksht1 - Field Flow'!E30=45,115,F101) -> Check pressure | G100: =IF('Worksht1 - Field Flow'!E30=45,222,G101) -> Check Pressure | H100: =IF('Worksht1 - Field Flow'!E30=45,321,H101) -> Check Pressure | I100: =IF('Worksht1 - Field Flow'!E30=45,429,I101) -> Phone Geoflow | J100: 45 PSI
B101: Check Pressure | C101: Check Pressure | D101: Check pressure | E101: Check Pressure | F101: Check pressure | G101: Check Pressure | H101: Check Pressure | I101: Phone Geoflow
A103: D45 Hours to dose per day
B104: =TEXT('Worksht1 - Field Flow'!G61/24,"h:mm") -> 7:02 | C104: =IF('Worksht1 - Field Flow'!G61<=E104,B104,"! ! !") -> ! ! ! | E104: 21
B106: ! ! !
B108: Not enough time in the day to perform parameters as entered. Try to increase flows per zone or decrease flush and drain times. Alternatively, reduce zones or add pumps.
A110: Price list. Valves
A111: =IF(Macros!$A$71='Parts List '!#REF!,'Worksht1 - Field Flow'!$E$19,) -> 
I112: Dripline Parts List | L112: List Price
A114: Price list. Dripline | I114: Classic | J114: PC 1/2 | K114: PC 1 | L114: Classic | M114: PC 1/2 | N114: PC 1
A115: =+IF('Worksht1 - Field Flow'!E22=1,I115,A116) -> WF16-4-24 | B115: =+IF('Worksht1 - Field Flow'!E25=A5,B116,C115) -> WFPC16-2-24 | C115: =+IF('Worksht1 - Field Flow'!E25=A6,C116,D116) -> Wasteflow PC . 1/2gph, 24in. emitter spacing | D115: =+IF('Parts List '!$C$16=I115,"Wasteflow Classic. 1gph, 12in. emitter spacing",D116) -> Wasteflow PC . 1/2gph, 24in. emitter spacing | F115: =IF('Parts List '!$C$16=I115,L115,F116) -> 0.588 | I115: WF16-4-12 | J115: WFPC16-2-12 | K115: WFPC16-4-12 | L115: 0.866 | M115: 0.92 | N115: 0.92
A116: =+IF('Worksht1 - Field Flow'!E22=2,I116,A117) -> WF16-4-24 | B116: =+IF('Worksht1 - Field Flow'!E22=1,J115,B117) -> WFPC16-2-24 | C116: =+IF('Worksht1 - Field Flow'!E22=1,K115,C117) -> WFPC16-4-24 | D116: =+IF('Parts List '!$C$16=I117,"Wasteflow Classic. 1gph, 18in. emitter spacing",D117) -> Wasteflow PC . 1/2gph, 24in. emitter spacing | F116: =IF('Parts List '!$C$16=I117,L117,F117) -> 0.588 | I116: WF16-4-24 | J116: WFPC16-2-24 | K116: WFPC16-4-24 | L116: 0.55 | M116: 0.588 | N116: 0.588
A117: =+IF('Worksht1 - Field Flow'!E22=1.5,I117,A118) -> WFPC16-2-24 | B117: =+IF('Worksht1 - Field Flow'!E22=2,J116,B118) -> WFPC16-2-24 | C117: =+IF('Worksht1 - Field Flow'!E22=2,K116,C118) -> WFPC16-4-24 | D117: =+IF('Parts List '!$C$16=I116,"Wasteflow Classic. 1gph, 24in. emitter spacing",D118) -> Wasteflow PC . 1/2gph, 24in. emitter spacing | F117: =IF('Parts List '!$C$16=I116,L116,F118) -> 0.588 | I117: WF16-4-18 | J117: WFPC16-2-18 | K117: WFPC16-4-18 | L117: 0.708 | M117: 0.754 | N117: 0.754
A118: =+IF('Worksht1 - Field Flow'!E22=0.5,I118,B115) -> WFPC16-2-24 | B118: =+IF('Worksht1 - Field Flow'!E22=1.5,J117,B119) -> Check dripline | C118: =+IF('Worksht1 - Field Flow'!E22=1.5,K117,C119) -> Check dripline | D118: =+IF('Parts List '!$C$16=I118,"Wasteflow PC. 1/2gph, 6 in. emitter spacing",D119) -> Wasteflow PC . 1/2gph, 24in. emitter spacing | F118: =IF('Parts List '!$C$16=J118,M118,F119) -> 0.588 | I118: WF16-4-06 | J118: WFPC16-2-06 | K118: WFPC16-4-06 | M118: 1.24 | N118: 1.24
B119: =+IF('Worksht1 - Field Flow'!E22=0.5,J118,B120) -> Check dripline | C119: =+IF('Worksht1 - Field Flow'!E22=0.5,K118,C120) -> Check dripline | D119: =+IF('Parts List '!$C$16=J115,"Wasteflow PC . 1/2gph, 12in. emitter spacing",D120) -> Wasteflow PC . 1/2gph, 24in. emitter spacing | F119: =IF('Parts List '!$C$16=J115,M115,F120) -> 0.588
B120: Check dripline | C120: Check dripline | D120: =+IF('Parts List '!$C$16=J117,"Wasteflow PC. 1/2gph, 18in. emitter spacing",D121) -> Wasteflow PC . 1/2gph, 24in. emitter spacing | F120: =IF('Parts List '!$C$16=J117,M117,F121) -> 0.588
C121: Check dripline | D121: =+IF('Parts List '!$C$16=J116,"Wasteflow PC . 1/2gph, 24in. emitter spacing",D122) -> Wasteflow PC . 1/2gph, 24in. emitter spacing | F121: =IF('Parts List '!$C$16=J116,M116,F122) -> 0.588
D122: =+IF('Parts List '!$C$16=J118,"Wasteflow PC . 1 gph, 6 in. emitter spacing",D123) -> Phone Geoflow | F122: =IF('Parts List '!$C$16=K118,M118,F123) -> Phone Geoflow
D123: =+IF('Parts List '!$C$16=K115,"Wasteflow PC . 1 gph, 12 in. emitter spacing",D124) -> Phone Geoflow | F123: =IF('Parts List '!$C$16=K115,M115,F124) -> Phone Geoflow
D124: =+IF('Parts List '!$C$16=K117,"Wasteflow PC . 1 gph, 18 in. emitter spacing",D125) -> Phone Geoflow | F124: =IF('Parts List '!$C$16=K116,M116,F125) -> Phone Geoflow
D125: =+IF('Parts List '!$C$16=K116,"Wasteflow PC . 1 gph, 24 in. emitter spacing",D126) -> Phone Geoflow | F125: =IF('Parts List '!$C$16=K117,M117,F126) -> Phone Geoflow
D126: =+IF('Parts List '!$C$16=K118,"Wasteflow PC . 1 gph, 6 in. emitter spacing",D127) -> Phone Geoflow | F126: Phone Geoflow
D127: Phone Geoflow
A129: Price list. Filters
B130: =A45 -> AP4E-1F | C130: 1" MPT Spinclean filter 0-20 gpm | I130: 41.2
A131: =IF('Parts List '!$C$32=Macros!B131,C130,A132) -> 0 | B131: =A46 -> AP4E-1.5F | C131: 1.5" Spinclean filter 0-45 gpm | H131: =IF('Parts List '!$C$32=Macros!B131,I131,H132) -> 0 | I131: 52.97
A132: =IF('Parts List '!$C$32=Macros!B132,C131,A133) -> 0 | B132: =A47 -> AP4E-2F | C132: 2" Spinclean filter 0-70 gpm | H132: =IF('Parts List '!$C$32=Macros!B132,I132,H133) -> 0 | I132: 270.71
A133: =IF('Parts List '!$C$32=Macros!B133,C133,A134) -> 0 | B133: =A48 -> AP4E-2F | C133: 2" Spinclean filter 0-70 gpm | H133: =IF('Parts List '!$C$32=Macros!B133,I133,H134) -> 0 | I133: 411.95
A134: =IF('Parts List '!$C$32=Macros!B134,C134,A135) -> 0 | B134: =+A51 -> BioDisc Filter-150 | C134: =+B51 -> 1.5in < 30 gpm | F134: 75 | G134: 125 | H134: =IF('Parts List '!$C$32=Macros!B134,I134,H135) -> 0 | I134: =+'Parts List '!F126 -> 3160
A135: =IF('Parts List '!$C$32=Macros!B135,C135,A136) -> 0 | B135: =+A52 -> BioDisc Filter-200 | C135: =+B52 -> 2in 30-60 gpm | F135: 150 | G135: 250 | H135: =IF('Parts List '!$C$32=Macros!B135,I135,H136) -> 0 | I135: =+'Parts List '!F127 -> 8400
A136: =IF('Parts List '!$C$32=Macros!B136,C136,A137) -> 0 | B136: =+A59 -> BioDisc Battery 2 | C136: =+B59 -> 40-70 gpm / 40 psi | F136: 300 | G136: 500 | H136: =IF('Parts List '!$C$32=Macros!B136,I136,H137) -> 0 | I136: =+'Parts List '!F128 -> 11000
A137: =IF('Parts List '!$C$32=Macros!B137,C137,A138) -> 0 | B137: =+A60 -> BioDisc Battery 4 | C137: 40-140 gpm 40 psi | F137: 600 | G137: 1000 | H137: =IF('Parts List '!$C$32=Macros!B137,I137,H138) -> 0 | I137: =+'Parts List '!F129 -> 17500
A138: =IF('Parts List '!$C$32=Macros!B138,C138,A139) -> 0 | B138: BioDisc Battery 6 | C138: 40-210 gpm 40psi | F138: 900 | G138: 1500 | H138: =IF('Parts List '!$C$32=Macros!B138,I138,H139) -> 0 | I138: =+'Parts List '!F130 -> 21000
A139: =IF('Parts List '!$C$32=Macros!B139,C139,A140) -> 0 | B139: BioDisc Battery 8 | C139: 40-280 gpm 40psi | F139: 30 | G139: 50 | H139: =IF('Parts List '!$C$32=Macros!B139,I139,H140) -> 0 | I139: 140
A140: =IF('Parts List '!$C$32=Macros!B140,C140,A141) -> 0 | F140: 60 | G140: 90 | H140: =IF('Parts List '!$C$32=Macros!B140,I140,H141) -> 0 | I140: 270
B155: Choose from Geo 1 controllers if single zone system
A156: =IF('Worksht1 - Field Flow'!E19<=4,Macros!B156,Macros!A157) -> Choose from Geo 4 controllers if using solenoid zone valves | B156: Choose from Geo 4 controllers if using solenoid zone valves
A157: =IF('Worksht1 - Field Flow'!E19<=8,Macros!B157,Macros!A158) -> Choose from Geo 8 controllers if using solenoid zone valves | B157: Choose from Geo 8 controllers if using solenoid zone valves
A158: Call Geoflow for special order
A162: F32 Pump Sizing - Pressure loss in filters | C162: Worksheet 2. Cell F32 | G162: F33 Pump Sizing - Pressure loss through valves
A163: Points on filter curve | H163: =+IF('Worksht2 - Pump Sizing'!E21=Macros!A67,0,Macros!H164) -> Check T3--Valves tab
A164: Flow in gpm | B164: Pressure loss(psi) | H164: =IF('Worksht2 - Pump Sizing'!$E$21=H165,I166,J164) -> Check T3--Valves tab | J164: =IF('Worksht2 - Pump Sizing'!$E$21=J165,K170,L164) -> Check T3--Valves tab | L164: =IF('Worksht2 - Pump Sizing'!$E$21=L165,M176,N164) -> Check T3--Valves tab | N164: =IF('Worksht2 - Pump Sizing'!$E$21=N165,O183,P164) -> Check T3--Valves tab | P164: =IF('Worksht2 - Pump Sizing'!$E$21=Macros!P165,Macros!Q166,Macros!R164) -> Check T3--Valves tab | R164: =IF('Worksht2 - Pump Sizing'!$E$21=Macros!R165,Macros!S166,Macros!T164) -> Check T3--Valves tab | T164: =IF('Worksht2 - Pump Sizing'!$E$21=Macros!T165,Macros!U166,Macros!V164) -> Check T3--Valves tab | V164: =IF('Worksht2 - Pump Sizing'!$E$21=Macros!V165,Macros!W166,Macros!X164) -> Check T3--Valves tab | X164: =IF('Worksht2 - Pump Sizing'!$E$21=Macros!X165,Macros!Y166,Macros!Z164) -> Check T3--Valves tab | Z164: Check T3--Valves tab
B165: =+B130 -> AP4E-1F | G165: gpm | H165: =+B72 -> SVLVB-100 | J165: =+B73 -> SVLVB-150 | L165: =+B74 -> SVLVB-200 | N165: =+B75 -> SVLVB-300 | P165: =H71 -> HT-4402 | R165: =H72 -> HT-4403 | T165: =H73 -> HT-4404 | V165: =H74 -> HT-4605 | X165: =H75 -> HT-4606
A166: 0 | B166: 0 | C166: =IF('Worksht1 - Field Flow'!$E$43<=A166,B166,C167) -> 0.75 | G166: 1-4 | H166: 0.2 | I166: =IF('Worksht1 - Field Flow'!$E$43<=4,H166,I167) -> 0.2 | Q166: See T3-Valves | S166: See T3-Valves | U166: See T3-valves | W166: See T3-valves | Y166: See T3-valves
A167: 1 | B167: 0.25 | C167: =IF('Worksht1 - Field Flow'!$E$43<=A167,B167,C168) -> 0.75 | G167: 10 | H167: 0.3 | I167: =IF('Worksht1 - Field Flow'!$E$43<=G167,H167,I168) -> 0.3
A168: 2 | B168: 0.5 | C168: =IF('Worksht1 - Field Flow'!$E$43<=A168,B168,C169) -> 0.75 | G168: 12 | H168: 0.4 | I168: =IF('Worksht1 - Field Flow'!$E$43<=G168,H168,I169) -> 0.4
A169: 3 | B169: 0.75 | C169: =IF('Worksht1 - Field Flow'!$E$43<=A169,B169,C170) -> 0.75 | G169: 15 | H169: 1 | I169: =IF('Worksht1 - Field Flow'!$E$43<=G169,H169,I170) -> 1
A170: 4 | B170: 1 | C170: =IF('Worksht1 - Field Flow'!$E$43<=A170,B170,C171) -> 1 | G170: 20 | H170: 2 | I170: =IF('Worksht1 - Field Flow'!$E$43<=G170,H170,I171) -> 2 | J170: 0.3 | K170: =IF('Worksht1 - Field Flow'!$E$43<=G170,J170,K171) -> 0.3
A171: 5 | B171: 2.5 | C171: =IF('Worksht1 - Field Flow'!$E$43<=A171,B171,C172) -> 2.5 | G171: 25 | H171: 3 | I171: =IF('Worksht1 - Field Flow'!$E$43<=G171,H171,I172) -> 3 | J171: 0.4 | K171: =IF('Worksht1 - Field Flow'!$E$43<=G171,J171,K172) -> 0.4
A172: 6 | B172: 3 | C172: =IF('Worksht1 - Field Flow'!$E$43<=A172,B172,C173) -> 3 | G172: 28 | H172: 4 | I172: =IF('Worksht1 - Field Flow'!$E$43<=G172,H172,I173) -> 4 | J172: 0.5 | K172: =IF('Worksht1 - Field Flow'!$E$43<=G172,J172,K173) -> 0.5
A173: 7 | B173: 4.1 | C173: =IF('Worksht1 - Field Flow'!$E$43<=A173,B173,C174) -> 4.1 | G173: 30 | H173: 4.3 | I173: =IF('Worksht1 - Field Flow'!$E$43<=G173,H173,I174) -> 4.3 | J173: 0.6 | K173: =IF('Worksht1 - Field Flow'!$E$43<=G173,J173,K174) -> 0.6
A174: 8 | B174: 5.2 | C174: =IF('Worksht1 - Field Flow'!$E$43<=A174,B174,C175) -> 5.2 | G174: 32 | H174: 5 | I174: =IF('Worksht1 - Field Flow'!$E$43<=G174,H174,I175) -> 5 | J174: 0.7 | K174: =IF('Worksht1 - Field Flow'!$E$43<=G174,J174,K175) -> 0.7
A175: 9 | B175: 6.8 | C175: =IF('Worksht1 - Field Flow'!$E$43<=A175,B175,C176) -> 6.8 | G175: 35 | H175: 6 | I175: =IF('Worksht1 - Field Flow'!$E$43<=G175,H175,I176) -> 6 | J175: 0.8 | K175: =IF('Worksht1 - Field Flow'!$E$43<=G175,J175,K176) -> 0.8
A176: 10 | B176: 8.5 | C176: =IF('Worksht1 - Field Flow'!$E$43<=A176,B176,C177) -> 8.5 | G176: 40 | H176: 7.8 | I176: =IF('Worksht1 - Field Flow'!$E$43<=G176,H176,I177) -> 7.8 | J176: 0.9 | K176: =IF('Worksht1 - Field Flow'!$E$43<=G176,J176,K177) -> 0.9 | L176: 0.1 | M176: =IF('Worksht1 - Field Flow'!$E$43<=G176,L176,M177) -> 0.1
A177: 11 | B177: 11 | C177: =IF('Worksht1 - Field Flow'!$E$43<=A177,B177,C178) -> 11 | G177: 45 | H177: 10 | I177: =IF('Worksht1 - Field Flow'!$E$43<=G177,H177,I178) -> 10 | J177: 0.95 | K177: =IF('Worksht1 - Field Flow'!$E$43<=G177,J177,K178) -> 0.95 | L177: 0.15 | M177: =IF('Worksht1 - Field Flow'!$E$43<=G177,L177,M178) -> 0.15
A178: Flow in gpm | B178: Pressure loss(psi) | C178: uhoh | G178: 50 | H178: 12 | I178: =IF('Worksht1 - Field Flow'!$E$43<=G178,H178,I179) -> 12 | J178: 1 | K178: =IF('Worksht1 - Field Flow'!$E$43<=G178,J178,K179) -> 1 | L178: 0.2 | M178: =IF('Worksht1 - Field Flow'!$E$43<=G178,L178,M179) -> 0.2
A179: =IF('Worksht2 - Pump Sizing'!$E$19=B179,C180,A192) -> Check filter | B179: =+B131 -> AP4E-1.5F | G179: 55 | H179: 14 | I179: =IF('Worksht1 - Field Flow'!$E$43<=G179,H179,I180) -> 14 | J179: 1.2 | K179: =IF('Worksht1 - Field Flow'!$E$43<=G179,J179,K180) -> 1.2 | L179: 0.3 | M179: =IF('Worksht1 - Field Flow'!$E$43<=G179,L179,M180) -> 0.3
A180: 6 | B180: 1 | C180: =IF('Worksht1 - Field Flow'!$E$43<=A180,B180,C181) -> 1 | G180: 60 | H180: =+'T3-Valves'!#REF! ->  | I180: =IF('Worksht1 - Field Flow'!$E$43<=G180,H180,I181) ->  | J180: 1.3 | K180: =IF('Worksht1 - Field Flow'!$E$43<=G180,J180,K181) -> 1.3 | L180: 0.4 | M180: =IF('Worksht1 - Field Flow'!$E$43<=G180,L180,M181) -> 0.4
A181: 8 | B181: 1.75 | C181: =IF('Worksht1 - Field Flow'!$E$43<=A181,B181,C182) -> 1.75 | G181: 70 | H181: Check tables | J181: 1.8 | K181: =IF('Worksht1 - Field Flow'!$E$43<=G181,J181,K182) -> 1.8 | L181: 0.5 | M181: =IF('Worksht1 - Field Flow'!$E$43<=G181,L181,M182) -> 0.5
A182: 10 | B182: 2.7 | C182: =IF('Worksht1 - Field Flow'!$E$43<=A182,B182,C183) -> 2.7 | G182: 80 | J182: 2.3 | K182: =IF('Worksht1 - Field Flow'!$E$43<=G182,J182,K183) -> 2.3 | L182: 0.6 | M182: =IF('Worksht1 - Field Flow'!$E$43<=G182,L182,M183) -> 0.6
A183: 12 | B183: 3.9 | C183: =IF('Worksht1 - Field Flow'!$E$43<=A183,B183,C184) -> 3.9 | G183: 90 | J183: 3 | K183: =IF('Worksht1 - Field Flow'!$E$43<=G183,J183,K184) -> 3 | L183: 0.7 | M183: =IF('Worksht1 - Field Flow'!$E$43<=G183,L183,M184) -> 0.7 | N183: 0.1 | O183: =IF('Worksht1 - Field Flow'!$E$43<=G183,N183,O184) -> 0.1
A184: 14 | B184: 5 | C184: =IF('Worksht1 - Field Flow'!$E$43<=A184,B184,C185) -> 5 | G184: 100 | J184: 4.1 | K184: =IF('Worksht1 - Field Flow'!$E$43<=G184,J184,K185) -> 4.1 | L184: 0.8 | M184: =IF('Worksht1 - Field Flow'!$E$43<=G184,L184,M185) -> 0.8 | N184: 0.2 | O184: =IF('Worksht1 - Field Flow'!$E$43<=G184,N184,O185) -> 0.2
A185: 16 | B185: 6.5 | C185: =IF('Worksht1 - Field Flow'!$E$43<=A185,B185,C186) -> 6.5 | G185: 125 | J185: 6 | K185: =IF('Worksht1 - Field Flow'!$E$43<=G185,J185,K186) -> 6 | L185: 1 | M185: =IF('Worksht1 - Field Flow'!$E$43<=G185,L185,M186) -> 1 | N185: 0.35 | O185: =IF('Worksht1 - Field Flow'!$E$43<=G185,N185,O186) -> 0.35
A186: 18 | B186: 8.25 | C186: =IF('Worksht1 - Field Flow'!$E$43<=A186,B186,C187) -> 8.25 | G186: 150 | J186: 7 | K186: =IF('Worksht1 - Field Flow'!$E$43<=G186,J186,K187) -> 7 | L186: 1.5 | M186: =IF('Worksht1 - Field Flow'!$E$43<=G186,L186,M187) -> 1.5 | N186: 0.5 | O186: =IF('Worksht1 - Field Flow'!$E$43<=G186,N186,O187) -> 0.5
A187: 20 | B187: 10.25 | C187: =IF('Worksht1 - Field Flow'!$E$43<=A187,B187,C188) -> 10.25 | G187: 175 | J187: 11.5 | K187: =IF('Worksht1 - Field Flow'!$E$43<=G187,J187,K188) -> 11.5 | L187: 2 | M187: =IF('Worksht1 - Field Flow'!$E$43<=G187,L187,M188) -> 2 | N187: 0.75 | O187: =IF('Worksht1 - Field Flow'!$E$43<=G187,N187,O188) -> 0.75
A188: 22 | B188: 12.3 | C188: =IF('Worksht1 - Field Flow'!$E$43<=A188,B188,C189) -> 12.3 | G188: 200 | J188: 15 | K188: =IF('Worksht1 - Field Flow'!$E$43<=G188,J188,K189) -> 15 | L188: 3 | M188: =IF('Worksht1 - Field Flow'!$E$43<=G188,L188,M189) -> 3 | N188: 1 | O188: =IF('Worksht1 - Field Flow'!$E$43<=G188,N188,O189) -> 1
A189: 24 | B189: 15 | C189: =IF('Worksht1 - Field Flow'!$E$43<=A189,B189,C190) -> 15 | G189: 250 | K189: Check tables | L189: 4.5 | M189: =IF('Worksht1 - Field Flow'!$E$43<=G189,L189,M190) -> 4.5 | N189: 1.4 | O189: =IF('Worksht1 - Field Flow'!$E$43<=G189,N189,O190) -> 1.4
A190: 26 | B190: 17 | C190: =IF('Worksht1 - Field Flow'!$E$43<=A190,B190,#REF!) -> 17 | G190: 300 | L190: 6.8 | M190: =IF('Worksht1 - Field Flow'!$E$43<=G190,L190,M191) -> 6.8 | N190: 1.9 | O190: =IF('Worksht1 - Field Flow'!$E$43<=G190,N190,O191) -> 1.9
A191: Flow in gpm | B191: Pressure loss(psi) | C191: =+C178 -> uhoh | G191: 400 | L191: 12 | M191: =IF('Worksht1 - Field Flow'!$E$43<=G191,L191,M192) -> 12 | N191: 3 | O191: =IF('Worksht1 - Field Flow'!$E$43<=G191,N191,O192) -> 3
A192: =IF('Worksht2 - Pump Sizing'!$E$19=Macros!B192,C193,A204) -> Check filter | B192: =+B132 -> AP4E-2F | G192: 450 | M192: Check tables | N192: 3.9 | O192: =IF('Worksht1 - Field Flow'!$E$43<=G192,N192,O193) -> 3.9
A193: 10 | B193: 0.75 | C193: =IF('Worksht1 - Field Flow'!$E$43<=A193,B193,C194) -> 0.75 | G193: 500 | N193: 4.7 | O193: =IF('Worksht1 - Field Flow'!$E$43<=G193,N193,O194) -> 4.7
A194: 15 | B194: 1 | C194: =IF('Worksht1 - Field Flow'!$E$43<=A194,B194,C195) -> 1 | G194: 550 | N194: 5.6 | O194: =IF('Worksht1 - Field Flow'!$E$43<=G194,N194,O195) -> 5.6
A195: 20 | B195: 1.5 | C195: =IF('Worksht1 - Field Flow'!$E$43<=A195,B195,C196) -> 1.5 | G195: 600 | N195: 6.6 | O195: =IF('Worksht1 - Field Flow'!$E$43<=G195,N195,O196) -> 6.6
A196: 25 | B196: 2.5 | C196: =IF('Worksht1 - Field Flow'!$E$43<=A196,B196,C197) -> 2.5 | G196: 650 | N196: 7.9 | O196: =IF('Worksht1 - Field Flow'!$E$43<=G196,N196,O197) -> 7.9
A197: 30 | B197: 3 | C197: =IF('Worksht1 - Field Flow'!$E$43<=A197,B197,C198) -> 3 | G197: 700 | N197: 9 | O197: =IF('Worksht1 - Field Flow'!$E$43<=G197,N197,O198) -> 9
A198: 35 | B198: 4 | C198: =IF('Worksht1 - Field Flow'!$E$43<=A198,B198,C199) -> 4 | G198: 750 | N198: 10.8 | O198: =IF('Worksht1 - Field Flow'!$E$43<=G198,N198,P164) -> 10.8
A199: 40 | B199: 5 | C199: =IF('Worksht1 - Field Flow'!$E$43<=A199,B199,C200) -> 5 | G199: 800
A200: 45 | B200: 6.8 | C200: =IF('Worksht1 - Field Flow'!$E$43<=A200,B200,C201) -> 6.8
A201: 50 | B201: 8 | C201: =IF('Worksht1 - Field Flow'!$E$43<=A201,B201,C202) -> 8
C202: =+C178 -> uhoh
A203: Flow in gpm | B203: Pressure loss(psi) | G203: F29 Pump Sizing - Pressure loss through dripline
A204: =IF('Worksht2 - Pump Sizing'!$E$19=Macros!B204,C205,A218) -> Check filter | B204: =+B133 -> AP4E-2F | G204: =+'Worksht1 - Field Flow'!E25 -> Wasteflow PC - 1/2gph | H204: Dripline chosen on Worksheet 1
A205: 20 | B205: 0.75 | C205: =IF('Worksht1 - Field Flow'!$E$43<=A205,B205,C206) -> 0.75 | G205: =+'Worksht1 - Field Flow'!E22 -> 2 | H205: Spacing between drippers from worksheet 1
A206: 30 | B206: 1 | C206: =IF('Worksht1 - Field Flow'!$E$43<=A206,B206,C207) -> 1 | G206: =+'Worksht1 - Field Flow'!E40 -> 653.1357547 | H206: Longest length of run from worksheet 1
A207: 40 | B207: 1.5 | C207: =IF('Worksht1 - Field Flow'!$E$43<=A207,B207,C208) -> 1.5 | G207: =IF($G$204=A4,I207,G216) -> 44.79 | I207: =IF($G$205=1,I210,K207) -> oops | K207: =IF($G$205=2,K210,G216) -> oops
A208: 50 | B208: 2 | C208: =IF('Worksht1 - Field Flow'!$E$43<=A208,B208,C209) -> 2 | G208: CLASSIC | H208: 12"/1.02gph | J208: 24"/1.02gph
A209: 55 | B209: 2.5 | C209: =IF('Worksht1 - Field Flow'!$E$43<=A209,B209,C210) -> 2.5 | G209: 0 | H209: 0 | J209: 0
A210: 60 | B210: 2.7 | C210: =IF('Worksht1 - Field Flow'!$E$43<=A210,B210,C211) -> 2.7 | G210: 50 | H210: 0.2179 | I210: =IF($G$206<=G210,H210,I211) -> oops | J210: 0.065 | K210: =IF($G$206<=G210,J210,K211) -> oops
A211: 65 | B211: 3.4 | C211: =IF('Worksht1 - Field Flow'!$E$43<=A211,B211,C212) -> 3.4 | G211: 100 | H211: 1.62236 | I211: =IF($G$206<=G211,H211,I212) -> oops | J211: 0.31994 | K211: =IF($G$206<=G211,J211,K212) -> oops
A212: 70 | B212: 3.7 | C212: =IF('Worksht1 - Field Flow'!$E$43<=A212,B212,C213) -> 3.7 | G212: 150 | H212: 5.49826 | I212: =IF($G$206<=G212,H212,I213) -> oops | J212: 1.0197 | K212: =IF($G$206<=G212,J212,K213) -> oops
A213: 75 | B213: 4.5 | C213: =IF('Worksht1 - Field Flow'!$E$43<=A213,B213,C214) -> 4.5 | G213: 200 | H213: 13.774 | I213: =IF($G$206<=G213,H213,I214) -> oops | J213: 2.539 | K213: =IF($G$206<=G213,J213,K214) -> oops
A214: 80 | B214: 5 | C214: =IF('Worksht1 - Field Flow'!$E$43<=A214,B214,C215) -> 5 | G214: 250 | I214: oops | J214: 4.5936 | K214: =IF($G$206<=G214,J214,K215) -> oops
A215: 85 | B215: 5.5 | C215: =IF('Worksht1 - Field Flow'!$E$43<=A215,B215,C216) -> 5.5 | G215: 300 | J215: 8.05329 | K215: oops
C216: =+C178 -> uhoh | G216: =IF(G204=A5,I217,G235) -> 44.79
A217: Flow in gpm | B217: Pressure loss(psi) | G217: PC 0.53 | I217: =IF($G$205=1,I219,K217) -> 44.79 | K217: =IF($G$205=1.5,K219,M217) -> 44.79 | M217: =IF($G$205=2,M219,G235) -> 44.79
A218: =IF('Worksht2 - Pump Sizing'!$E$19=Macros!B218,C219,A221) -> Check filter | B218: =+B134 -> BioDisc Filter-150 | H218: =+Macros!R219 -> 0 | J218: =+Macros!S219 -> 0 | L218: =+Macros!T219 -> 0
A219: 30 | B219: 5 | C219: =IF('Worksht1 - Field Flow'!$E$43<=A219,B219,C220) -> 5 | E219: 20 | F219: 0.75 | G219: 50 | H219: 0.14 | I219: =IF($G$206<=G219,H219,I220) -> Dripline too long | J219: 0.1 | K219: =IF($G$206<=G219,J219,K220) -> Dripline too long | L219: 0.05 | M219: =IF($G$206<=G219,L219,M220) -> 44.79
A220: 60 | B220: 6.5 | C220: =IF('Worksht1 - Field Flow'!$E$43<=A220,B220,C221) -> 6.5 | E220: 30 | F220: 0.8 | G220: 100 | H220: 0.9 | I220: Dripline too long | J220: 0.3 | K220: Dripline too long | L220: 0.153 | M220: 44.79
A221: =IF('Worksht2 - Pump Sizing'!$E$19=Macros!B221,C222,A224) -> Check filter | B221: =+B135 -> BioDisc Filter-200 | C221: flow too high | E221: 40 | F221: 0.9 | G221: 150 | H221: 2.9 | I221: Dripline too long | J221: 1 | K221: Dripline too long | L221: 0.49 | M221: 44.79
A222: 45 | B222: 5 | C222: =IF('Worksht1 - Field Flow'!$E$43<=A222,B222,C223) -> 5 | E222: 50 | F222: 1 | G222: 200 | H222: 6.77 | I222: Dripline too long | J222: 2.3 | K222: Dripline too long | L222: 1.12 | M222: 44.79
A223: 90 | B223: 6.5 | C223: =IF('Worksht1 - Field Flow'!$E$43<=A223,B223,C224) -> 6.5 | E223: 60 | F223: 1.3 | G223: 250 | H223: 13 | I223: Dripline too long | J223: 4.49 | K223: Dripline too long | L223: 2.15 | M223: 44.79
A224: =IF('Worksht2 - Pump Sizing'!$E$19=Macros!B224,C225,A227) -> Check filter | B224: =+B136 -> BioDisc Battery 2 | C224: flow too high | G224: 300 | H224: 22.66 | I224: Dripline too long | J224: 7.64 | K224: Dripline too long | L224: 3.66 | M224: 44.79
A225: 70 | B225: 4.8 | C225: =IF('Worksht1 - Field Flow'!$E$43<=A225,B225,C226) -> 4.8 | G225: 350 | H225: 36 | I225: Dripline too long | J225: 12 | K225: Dripline too long | L225: 5.74 | M225: 44.79
A226: 100 | B226: 5.8 | C226: =IF('Worksht1 - Field Flow'!$E$43<=A226,B226,C227) -> 5.8 | G226: 400 | H226: 53.96 | I226: Dripline too long | J226: 17.9 | K226: Dripline too long | L226: 8.5 | M226: 44.79
A227: =IF('Worksht2 - Pump Sizing'!$E$19=Macros!B227,C228,A230) -> Check filter | B227: =+B137 -> BioDisc Battery 4 | C227: flow too high | G227: 450 | H227: 70 | I227: Dripline too long | J227: 25.44 | K227: Dripline too long | L227: 12.03 | M227: 44.79
A228: 100 | B228: 4.8 | C228: =IF('Worksht1 - Field Flow'!$E$43<=A228,B228,C230) -> 4.8 | G228: 500 | I228: Dripline too long | J228: 35 | K228: Dripline too long | L228: 16.42 | M228: 44.79
A229: 200 | B229: 5 | C229: =IF('Worksht1 - Field Flow'!$E$43<=A229,B229,C231) -> 5 | G229: 550 | J229: 46.6 | K229: Dripline too long | L229: 21.79 | M229: 44.79
A230: =IF('Worksht2 - Pump Sizing'!$E$19=Macros!B230,C231,A233) -> Check filter | B230: =+B138 -> BioDisc Battery 6 | C230: flow too high | G230: 600 | J230: 60 | K230: Dripline too long | L230: 28.24 | M230: 44.79
A231: 200 | B231: 4.8 | C231: =IF('Worksht1 - Field Flow'!$E$43<=A231,B231,C233) -> 4.8 | G231: 650 | K231: =+I228 -> Dripline too long | L231: 35.87 | M231: 44.79
A232: 300 | B232: 5 | C232: =IF('Worksht1 - Field Flow'!$E$43<=A232,B232,C234) -> 5 | G232: 700 | L232: 44.79 | M232: 44.79
A233: =IF('Worksht2 - Pump Sizing'!$E$19=Macros!B233,C234,A237) -> Check filter | B233: =+B139 -> BioDisc Battery 8 | C233: flow too high | G233: 750 | L233: 55.12 | M233: 55.12
A234: 320 | B234: 4.9 | C234: =IF('Worksht1 - Field Flow'!$E$43<=A234,B234,C235) -> 4.9 | G234: 800 | M234: =+I228 -> Dripline too long
A235: 400 | B235: 5 | C235: =IF('Worksht1 - Field Flow'!$E$43<=A235,B235,C236) -> 5 | G235: =IF($G$204=A6,I235,G247) -> Oops | I235: =IF($G$205=1,I237,K235) -> Dripline too long | K235: =IF($G$205=1.5,K237,M235) -> Dripline too long | M235: =IF($G$205=2,M237,"oops") -> Dripline too long
... 40 more rows

Sheet Worksht1 - Field Flow
F1: =+Intro.!P4 -> Updated Jan. 2015
B2: FIELD FLOW
B3: Job Description: | D3: Fill in Job Site
B4: Contact: | D4: Fill in Customer name
B5: Prepared by: | D5: Fill in Designer name, email, phone
B6: Date: | D6: Fill in date 7/31/2014
B8: Please fill in the shaded areas and drop down menus:
B9: This spreadsheet is a guide for small systems with residential waste & is not a complete hydraulic design.
B11: Worksheet 1- Field Flow
B13: Total field
C14: Total Quantity of effluent to be disposed per day | E14: 2500 | F14: gallons / day | G14: note
C15: Hydraulic loading rate | E15: 0.1 | F15: gallons / sq.ft. / day | G15: note
C16: Minimum Dispersal Field Area | E16: =SUM(E14/E15) -> 25000 | F16: square ft. | G16: note | N16: Optional section for uneven zone sizes
C17: Total Dispersal Field Area | E17: 636 | F17: square ft. | G17: note | N17: =+E25 -> Wasteflow PC - 1/2gph | O17: Zone #1 | P17: Zone #2 | Q17: Zone 3 | R17: Zone 4 | S17: Zone 5 | T17: Zone 6 | U17: Zone 7 | V17: Zone 8 | W17: Zone 9 | X17: Zone 10
B18: Flow per zone | N18: Dispersal Area per zone (sq ft.) | O18: Fill in | P18: Fill in | Q18: Fill in | R18: Fill in | S18: Fill in | T18: Fill in | U18: Fill in | V18: Fill in | W18: Fill in | X18: Fill in
B19: Number of Zones | E19: 1 | F19: zone(s) | G19: note | N19: Line spacing | O19: =$E$21 -> 2 | P19: =$E$21 -> 2 | Q19: 2 | R19: 2 | S19: 2 | T19: 2 | U19: 2 | V19: 2 | W19: 2 | X19: 2
C20: Dispersal area per zone | E20: =SUM(E17/E19) -> 636 | F20: square ft. | G20: note | N20: Emitter spacing | O20: =$E$22 -> 2 | P20: =$E$22 -> 2 | Q20: 2 | R20: 2 | S20: 2 | T20: 2 | U20: 2 | V20: 2 | W20: 2 | X20: 2
C21: Choose line spacing between WASTEFLOW lines | E21: 2 | F21: ft. | G21: note | N21: Linear ft | O21: =+O18/O19 ->  | P21: =+P18/P19 ->  | X21: =+X18/X19 -> 
C22: Choose emitter spacing between WASTEFLOW emitters | E22: 2 | F22: ft. | G22: note | N22: No. of emitters per zone | O22: =+O21/O20 ->  | P22: =+P21/P20 -> 
C23: Total linear ft.per zone (minimum required) | E23: =SUM(E20/E21) -> 318 | F23: ft. per zone | G23: note | N23: Select dripline | O23: =+$N$17 -> Wasteflow PC - 1/2gph | P23: Wasteflow PC - 1/2gph | Q23: Wasteflow PC - 1/2gph | R23: Wasteflow PC - 1/2gph | S23: Wasteflow PC - 1/2gph | T23: Wasteflow PC - 1/2gph | U23: Wasteflow PC - 1/2gph | V23: Wasteflow PC - 1/2gph | W23: Wasteflow PC - 1/2gph | X23: Wasteflow PC - 1/2gph
C24: Total number of emitters per zone | E24: =E23/E22 -> 159 | F24: emitters per zone | G24: note
C25: Select Wasteflow dripline (16mm) | E25: Wasteflow PC - 1/2gph | F25: dripline | G25: note
L26: BioDisc-150 | M26: =+'Worksht1 - Field Flow'!I48 -> -
E27: =Macros!A4 -> Wasteflow Classic | L27: BioDisc-200 | M27: =+'Worksht1 - Field Flow'!#REF! -> 
E28: =Macros!A5 -> Wasteflow PC - 1/2gph | N28: Pressure at the beginning of zone | O28: =$E$30 -> 20 | P28: =$E$30 -> 20 | Q28: 20 | R28: 20 | S28: 20 | T28: 20 | U28: 20 | V28: 20 | W28: 20 | X28: 20
E29: =Macros!A6 -> Wasteflow PC - 1 gph | N29: Ft of head at beginning of zone | O29: =$E$31 -> 46.2 | P29: =$E$31 -> 46.2 | Q29: 46.2 | R29: 46.2 | S29: 46.2 | T29: 46.2 | U29: 46.2 | V29: 46.2 | W29: 46.2 | X29: 46.2
C30: Pressure at the beginning of the dripfield | E30: 20 | F30: psi | G30: note | N30: Flow rate per emitter in gph | O30: =IF(O23=Macros!$A$5,0.53,Macros!$A$21) -> 0.53 | P30: =IF(P23=Macros!$A$5,0.53,Macros!$A$21) -> 0.53 | Q30: =IF(Q23=Macros!$A$5,0.53,Macros!$A$21) -> 0.53 | R30: =IF(R23=Macros!$A$5,0.53,Macros!$A$21) -> 0.53 | S30: =IF(S23=Macros!$A$5,0.53,Macros!$A$21) -> 0.53 | T30: =IF(T23=Macros!$A$5,0.53,Macros!$A$21) -> 0.53 | U30: =IF(U23=Macros!$A$5,0.53,Macros!$A$21) -> 0.53 | V30: =IF(V23=Macros!$A$5,0.53,Macros!$A$21) -> 0.53 | W30: =IF(W23=Macros!$A$5,0.53,Macros!$A$21) -> 0.53 | X30: =IF(X23=Macros!$A$5,0.53,Macros!$A$21) -> 0.53
C31: Feet of Head at the beginning of the dripfield | E31: =E30*2.31 -> 46.2 | F31: ft. | G31: note | N31: Dose flow | O31: =(O30*O22)/60 ->  | P31: =(P30*P22)/60 -> 
C32: What is the flow rate per emitter in gph? | E32: =IF(E25=Macros!A5,0.53,Macros!A21) -> 0.53 | F32: gph | G32: note
C33: Dose flow per zone | E33: =(E32*E24)/60 -> 1.4045 | F33: gpm | G33: note | N33: Fush velocity | O33: =$E$37 -> 2 | P33: =$E$37 -> 2 | Q33: 2 | R33: 2 | S33: 2 | T33: 2 | U33: 2 | V33: 2 | W33: 2 | X33: 2
C34: Note: A few States or Counties require additional flow for flushing. Please check your local regulations. | N34: Number of driplines | O34: Fill in | P34: Fill in | Q34: Fill in | R34: Fill in | S34: Fill in | T34: Fill in | U34: Fill in | V34: Fill in | W34: Fill in | X34: Fill in
C35: Flush velocity calculation below is for PC dripline. Classic dripline requires less flow to flush than PC. | N35: Length of longest line | O35: =+O21/O34 -> 
C36: Please refer to Geoflow's spreadsheet "Design Flow and Flush Curves" at www.geoflow.com or call 800-828-3388.
C37: If required, choose flush velocity | E37: 2 | F37: ft/sec | G37: note | N37: Flush flow per line gpm | O37: =$E$75*7.48*60 -> 1.480182917 | P37: =$E$75*7.48*60 -> 1.480182917 | Q37: 1.480182917 | R37: 1.480182917 | S37: 1.480182917 | T37: 1.480182917 | U37: 1.480182917 | V37: 1.480182917 | W37: 1.480182917 | X37: 1.480182917
C38: How many lines of WASTEFLOW per zone? | E38: 1 | F38: lines | G38: note | N38: Total flow to flush lines in gpm | O38: =O37*O34 -> 
C39: Fill in the actual length of longest dripline lateral | E39: =+E23/E38 -> 318 | F39: ft. | G39: note | N39: Total flow (flush and dose) in gpm | O39: =O38+O31 -> 
D40: Equivalent length including flush requirement | E40: =E39+(E41*60/E32)*E22 -> 653.1357547 | L40: TODD- This line is usually hidden.
C41: Flush flow required at the end of each dripline | E41: =E75*7.48*60 -> 1.480182917 | F41: gpm | G41: note
C42: Total Flow required to achieve flushing velocity | E42: =E41*E38 -> 1.480182917 | F42: gpm | G42: note
C43: Total Flow per zone- worst case scenario | E43: =E42+E33 -> 2.884682917 | F43: =F42 -> gpm | G43: note
B44: Select Filters and zone valves
C45: Select Filter Type | E45: Select Filter | G45: note
C46: Recommended Filter (item no.) | E46: =IF(E45=Macros!A37,"Select filter above",Macros!A43) -> Select filter above | F46: =IF(E46=Macros!A45,Macros!B45,Macros!C46) -> Select | G46: note | H46: =IF(E45=Macros!A40,"BioDisc Battery is for large systems. Not suitable for this spreadhseet"," ") -> 
C47: Select Zone Valve Type | E47: Electric Solenoid | F47: =IF(E47=Macros!A65,'Worksht1 - Field Flow'!I48,"-") -> - | G47: note
C48: Recommended Zone Valve (item no.) | E48: =IF(E19=1,0,Macros!A68) -> 0 | F48: =IF(E48=Macros!B72,Macros!C72,Macros!D73) -> 0 | G48: note | I48: =IF('Worksht1 - Field Flow'!E43>50,"!!!! 50 gpm max flow","-") -> -
C49: =IF(E47="Hydraulic","Note minimum pressure of 25 psi required for Hydraulic valves.Check pressure in Cell D28 above.","-") -> -
B50: Dosing
C51: Number of doses per day / zone: | E51: 12 | F51: doses | G51: note
C52: Timer ON. Pump run time per dose/zone: | E52: =SUM(I52+((J52*60/100))) -> 148.199644 | F52: mins:secs | G52: =+(E14/E33)/(E51*E19) -> 148.33274 | I52: =ROUNDDOWN(G52,0) -> 148 | J52: =G52-I52 -> 0.3327400024
C53: Timer OFF. Pump off time between doses | E53: =TEXT(G53/24,"h:mm") ->  | F53: hrs:mins | G53: =((24/E51))-(G52/60)-E56-E59 -> -0.473254
C54: Per Zone - Pump run time per day/zone: | E54: =TEXT(G54/24,"h:mm") -> 5:40 | F54: hrs:mins | G54: =SUM((E14/E19)/(E33*60)) -> 29.666548
C55: All Zones - Number of doses per day / all zones | E55: =+E51*E19 -> 12 | F55: doses / day
C56: Allow time for field to pressurize | E56: 00:00:30 | F56: hrs:mins:secs | G56: =(E56-INT(E56))*24*60 -> 0.5
C57: Filter flush timer | E57: 00:00:20 | F57: hrs:mins:secs | G57: =(E57-INT(E57))*24*60 -> 0.3333333333 | H57: note
C58: Drain timer | E58: 00:05:00 | F58: hrs:mins:secs | G58: =(E58-INT(E58))*24*60 -> 5 | H58: note
C59: Field flush timer | E59: 00:01:00 | F59: hrs:mins:secs | G59: =(E59-INT(E59))*24*60 -> 1 | H59: note
C60: Field flush counter | E60: 3 | F60: cycles | G60: note
C61: Time required to complete all functions per day | E61: =Macros!C104 -> ! ! ! | F61: hrs:mins | G61: =+((G59+G58+G57+G56+G52)*E51*E19)/60 -> 31.03321467 | H61: =IF(E61="! ! !",Macros!B108,0) -> Not enough time in the day to perform parameters as entered. Try to increase flows per zone or decrease flush and drain times. Alternatively, reduce zones or add pumps.
B62: Dose volume per zone | E62: =+G52*E33 -> 208.3333333 | F62: gallons per dose | G62: note
C63: =IF(I60>(G53*60),Macros!B108,0) -> Not enough time in the day to perform parameters as entered. Try to increase flows per zone or decrease flush and drain times. Alternatively, reduce zones or add pumps.
C64: Allow time in the day for controller to have pressurization and drainage time.
B71: Flush Cycle Flow formula
C72: Drip tube diameter | E72: 0.55 | F72: in
C73: Drip Tube Diameter | E73: =E72/12 -> 0.04583333333 | F73: ft
C74: Drip Tube Cross Sectional Area | E74: =(E73^2)*3.14/4 -> 0.001649045139 | F74: ft2
C75: Flow required per dripline for flush velocity | E75: =E37*E74 -> 0.003298090278 | F75: ft3/sec
B77: Volume in Dripfield | F77: V = π d * d /4 * h
B78: Dripline Volume Formula
C79: Tubing Inside diameter | E79: 0.55 | F79: inches | G79: (linear inches * pie * (ID/2)squared) = cubic inches
C80: Total length of WASTEFLOW dripline / zone | E80: =+E23 -> 318 | F80: ft | G80: 1728 cubic inches in a cubic ft.
C81: Total Volume in dripline / zone | E81: =+((((E79/2)*(E79/2))*(E80*12))*3.1416)/1728*7.481 -> 3.925008111 | F81: gallons | G81: 7.481 gallons in a cubic ft.
B82: Supply line Volume
C83: Inside diameter | D83: 1.25 | E83: =IF(D83=1.25,1.38,C92) -> 1.38 | F83: inches
C84: Length | E84: 87 | F84: ft
C85: Total Volume in supply line | E85: =+((((E83/2)*(E83/2))*(E84*12))*3.1416)/1728*7.481 -> 6.760292467 | F85: gallons
B86: Return line Volume
C87: Inside diameter | D87: 2 | E87: =IF(D87=1.25,1.38,C93) -> 2.067 | F87: inches
C88: Length | E88: 87 | F88: ft
C89: Total Volume in supply line | E89: =+((((E87/2)*(E87/2))*(E88*12))*3.1416)/1728*7.481 -> 15.16660114 | F89: gallons
B91: Total recharge volume | E91: =+E89+E85+E81 -> 25.85190171
C92: =IF(D83=2,2.067,D92) -> Fill in actual ID | D92: Fill in actual ID
C93: =IF(D87=2,2.067,D93) -> 2.067 | D93: Fill in actual ID
C101: TOTAL RECHARGE VOLUME FOR DRIP SYSTEM
C103: 2 INCH FORCE MAIN (25 feet)
F105: =(3.1416*((E72*E72)/12)/4*1)*E80*12 -> 75.551553
C107: V = π(2.067*2.067/12)/4 * 1
C108: V = 0.0932/4 * 1
C109: V = 0.0233 cubic feet * 7.48 gallons per cubic feet
C110: V = 0.1743 gallons per linear feet * 25 linear feet
C111: V = 4.36 Gallons
C113: 1.25 INCH SUPPLY MANIFOLD (TOTAL OF 87 FEET PER ZONE)
C115: V = π(1.380*1.380/12)/4 * 1
C116: V = 0.010387 cubic feet * 7.48 gallons per cubic feet
C117: V = 0.07769 gallons per linear feet * 87 linear feet
C118: V = 6.76 Gallons
C120: 0.5 INCH PC GEOFLOW WASTEFLOW DRIPLINES (850 FEET)
C122: V = π(0.55*0.55/12)/4 * 1
C123: V = 0.0066/4 * 1
C124: V = 0.00165 cubic feet * 7.48 gallons per cubic feet
C125: V = 0.0123 gallons per linear feet * 850 linear feet
C126: V =10.49 Gallons
C128: TOTAL RECHARGE VOLUME REQUIRED = 21.61 GALLONS
C132: FILTERS | D132: Column1 | E132: Column2 | F132: Column3
C133: Vortex Filters | D133: Select filter from drop-down menu (left) | E133: =IF($N$47=C133,D133,E134) -> 0
C134: AP4E-.75F / Max flow 10 gpm | D134: =+Macros!A45 -> AP4E-1F | E134: 0
C135: AP4E-1F / Max flow 20 gpm | D135: =+Macros!A46 -> AP4E-1.5F | E135: 0
C136: AP4E-1.5F / Max flow 45 gpm | D136: =+Macros!A47 -> AP4E-2F | E136: 0
C137: AP4E-2F / Max flow 70 gpm | D137: =+Macros!A48 -> AP4E-2F | E137: 0
C138: Disc Filter | D138: Select filter from drop-down menu (left) | E138: 0
C139: BioDisc-150 / Max flow 30 gpm | D139: =+Macros!A59 -> BioDisc Battery 2 | E139: 0
C140: BioDisc-200 / Max flow 60 gpm | D140: =+Macros!A60 -> BioDisc Battery 4 | E140: 0
C141: Geovac Filters | D141: Select filter from drop-down menu (left) | E141: 0
C142: GeoVac75-02 / Max flow 75 gpm | D142: =+Macros!A51 -> BioDisc Filter-150 | E142: 0
C143: GeoVac150-03 / Max flow 150 gpm | D143: =+Macros!A52 -> BioDisc Filter-200 | E143: 0
C144: GeoVac250-04 / Max flow 250 gpm | D144: =+Macros!A53 -> 0 | E144: 0
C145: GeoVac500-06 / Max flow 500 gpm | D145: =+Macros!A54 -> 0 | E145: 0
C146: GeoVac700-08 / Max flow 700 gpm | D146: =+Macros!A55 -> 0 | E146: =IF($N$47=C146,D146,E148) -> 0
C147: Column1 | E147: =IF($N$47=C147,D147,E149) -> 0
C148: ZONE VALVES
C149: Electric solenoid | D149: Select valve from drop-down menu (left) | E149: =IF($N$48=C149,D149,E150) -> 0
C150: =+Macros!C72 -> 1-in. Solenoid valve | D150: =+Macros!B72 -> SVLVB-100 | E150: 0
C151: =+Macros!C73 -> 1.5-in. Solenoid valve | D151: =+Macros!B73 -> SVLVB-150 | E151: 0
C152: =+Macros!C74 -> 2-in. Solenoid valve | D152: =+Macros!B74 -> SVLVB-200 | E152: 0
C153: =+Macros!C75 -> 3-in. Solenoid valve | D153: =+Macros!B75 -> SVLVB-300 | E153: 0
C154: Index/Hydraulic valves | D154: Select valve from drop-down menu (left) | E154: 0
C155: =+Macros!J71 -> 2 zone Index valve 1.25x1.25", 25-75psi, >9gpm | D155: =+Macros!H71 -> HT-4402 | E155: 0
C156: =+Macros!J72 -> 3 zone Index valve 1.25x1.25", 25-75psi, >9gpm | D156: =+Macros!H72 -> HT-4403 | E156: 0
C157: =+Macros!J73 -> 4 zone Index valve 1.25x1.25", 25-75psi, >9gpm | D157: =+Macros!H73 -> HT-4404 | E157: 0
C158: =+Macros!J74 -> 5 zone Index valve 1.25x1", 25-75psi, >9gpm | D158: =+Macros!H74 -> HT-4605 | E158: 0
C159: =+Macros!J75 -> 6 zone Index valve 1.25x1", 25-75psi, >9gpm | D159: =+Macros!H75 -> HT-4606 | E159: 0
C160: =+Macros!H76 -> 0
C161: =+Macros!H77 -> 0

Sheet Worksht2 - Pump Sizing
I1: =Intro.!P4 -> Updated Jan. 2015
A2: PUMP SIZING
A3: Job Description: | D3: =+'Worksht1 - Field Flow'!D3 -> Fill in Job Site
A4: Contact: | D4: =+'Worksht1 - Field Flow'!D4 -> Fill in Customer name
A5: Prepared by: | D5: =+'Worksht1 - Field Flow'!D5 -> Fill in Designer name, email, phone
A6: Date: | D6: ='Worksht1 - Field Flow'!D6 -> Fill in date 7/31/2014
B8: =+'Worksht1 - Field Flow'!B8:F8 -> Please fill in the shaded areas and drop down menus:
B9: =+'Worksht1 - Field Flow'!B9 -> This spreadsheet is a guide for small systems with residential waste & is not a complete hydraulic design.
B10: Pressure losses may be grossly overstated, particularly if designing with WASTEFLOW Classic
B11: The letters on the diagram(right) match the letters in section 2 below.
A13: Worksheet - Pump Sizing
A15: Section 1 - Summary from Worksheet 1
B16: Flow required to dose field | D16: =+'Worksht1 - Field Flow'!E33 -> 1.4045 | E16: gpm
B17: Flow required to flush field | D17: =+'Worksht1 - Field Flow'!E42 -> 1.480182917 | E17: gpm
B18: Flow required to dose & flush field | D18: =+'Worksht1 - Field Flow'!E43 -> 2.884682917 | E18: gpm
B19: Filter | E19: ='Worksht1 - Field Flow'!E46 -> Select filter above
B20: No. of Zones | D20: ='Worksht1 - Field Flow'!E19 -> 1 | E20: zones
B21: Zone valve | E21: ='Worksht1 - Field Flow'!E48 -> 0
B22: Dripline | E22: =+Macros!G204 -> Wasteflow PC - 1/2gph
B23: Dripline longest lateral | D23: =+'Worksht1 - Field Flow'!E39 -> 318 | E23: ft. | H23: =+'Worksht1 - Field Flow'!L39 -> 0
A25: Section 2 | E25: Ft of head | G25: Pressure
A26: A. Flush line - Losses through return line
C27: Select Pipe from dropdown menu | D27: PVC schedule 40
C28: Select Flush Line Diameter | D28: 1/2" | E28: inch
C29: Length of return line | D29: 172 | E29: ft.
C30: Equivalent length of fittings | D30: 5 | E30: ft.
C31: Elevation change. (if downhill enter 0) | D31: 8 | E31: ft.
C32: Pressure loss in 100 ft of pipe | D32: =0.2083*((100/140)^1.852)*($D$17^1.852)/(D76^4.8655) -> 2.327003995 | E32: ft. | F32: =+D32/2.31 -> 1.007361037 | G32: psi
C33: Total pressure loss from end of dripline to return tank | D33: =+D31+(((D29+D30)/100)*D32) -> 12.11879707 | E33: ft. | F33: =+D33/2.31 -> 5.246232498 | G33: psi
A34: B. Dripline - Losses through Wasteflow dripline
C35: Length of longest dripline lateral | D35: =+'Worksht1 - Field Flow'!E39 -> 318 | E35: ft.
C36: Minimum dosing pressure required at end of dripline | D36: =+F36*2.31 -> 23.1 | E36: ft. | F36: =IF(F33<10,10,F33) -> 10 | G36: psi
C37: Loss through dripline during flushing | D37: =+F37*2.31 -> 13.2594 | E37: ft. | F37: =+'T1-Dripline'!A136 -> 5.74 | G37: psi | H37: =IF(F37="Dripline too long", "NOTE: Dripline lateral too long","-") -> -
C38: Total minimum required dripline pressure | D38: =D36+D37 -> 36.3594 | E38: ft. | F38: =+D38/2.31 -> 15.74 | G38: psi | H38: If back pressure when flushing is positive then add this pressure to this number. If flushing downhill then use this number.
D39: =+D38 -> 36.3594 | E39: =+D38+D33 -> 48.47819707
A40: A+B. Minimum Pressure required at beginning of dripfield
B41: CALCULATED pressure required at beginning of dripfield | D41: =IF(D33<=0,D39,E39) -> 48.47819707 | E41: =E42 -> ft. | F41: =+D41/2.31 -> 20.9862325 | G41: psi
B42: SPECIFIED pressure at beginning of dripfield (from worksht 1) | D42: ='Worksht1 - Field Flow'!E31 -> 46.2 | E42: ft. | F42: =+D42/2.31 -> 20 | G42: psi
B43: =IF(D41<D42," Great! SPECIFIED Pressure is greater than CALCULATED Pressure requirement. Go to next step"," !!! Urgent revision required SPECIFIED pressure must be greater than CALCULATED pressure and lower than 50 psi") -> !!! Urgent revision required SPECIFIED pressure must be greater than CALCULATED pressure and lower than 50 psi
A44: C. Drip components - Losses through headworks
C45: Filter | D45: =+F45*2.31 ->  | E45: ft. | F45: =IF(E19=Macros!B165,Macros!C166,Macros!A179) -> Check filter | G45: psi
C46: Zone valve pressure loss (not in diagram) | D46: =+F46*2.31 -> 0 | E46: ft. | F46: =IF(D20=1,0,Macros!H163) -> 0 | G46: psi
C47: Flow meter pressure loss (not in diagram) | E47: ft. | F47: =+D47/2.31 -> 0 | G47: psi
C48: Other pressure losses | E48: ft. | F48: =+D48/2.31 -> 0 | G48: psi
C49: Total loss through drip components | D49: =SUM(D45:D48) ->  | E49: ft. | F49: =SUM(F45:F48) -> 0 | G49: psi
A51: D. Supply line - Minimum Pressure head required to get from pump tank to top of dripfield
C52: Select Pipe from dropdown menu | D52: PVC schedule 40
B53: Select Supply line diameter | D53: 1-1/2" | E53: inch
C54: Length of supply line | D54: 200 | E54: ft.
C55: Equivalent length of fittings | D55: 5 | E55: ft.
C56: Height from pump to tank outlet | D56: 5 | E56: ft.
C57: =+C31 -> Elevation change. (if downhill enter 0) | D57: =+D31*-1 -> -8 | E57: ft.
B58: Pressure loss/gain in 100 ft. of pipe | D58: =0.2083*((100/140)^1.852)*($D$18^1.852)/($D$82^4.8655) -> 0.07831599988 | E58: ft. | F58: =+D58/2.31 -> 0.03390303025 | G58: psi | H58: START HERE
C59: Total gain or loss from pump to field | D59: =++D56+D57+(((D55+D54)/100)*D58) -> -2.8394522 | E59: ft. | F59: =+D59/2.31 -> -1.229200087 | G59: psi
B60: Total dynamic head | D60: =+D59+D49+D42 ->  | E60: ft. | F60: =+D60/2.31 ->  | G60: psi
B61: Pump capacity * - Field Flush Flow | D61: =+D18 -> 2.884682917 | E61: gpm | F61: =+F60 ->  | G61: =+G60 -> psi
B62: - Field Dose Flow | D62: =+D16 -> 1.4045 | E62: gpm
B63: - Filter Flush Flow | D63: =IF('Worksht1 - Field Flow'!E45=Macros!A40,40,"-") -> - | E63: gpm | F63: =+D63 -> - | G63: psi
B64: Pump Model Number
B65: Voltz / Hp / phase
B67: * | C67: Note: Pump capacity flow assumes flow in dripline does not change during a dose cycle. With Wasteflow Classic this can be grossly over stated.
C68: For more accurate flows please see Geoflow's Flushing worksheet.
C69: If you need assistance designing for this additional flow, please
C70: a. See Geoflow flushing worksheet or
C71: b. Contact Geoflow at 800-828-3388.
C72: For pressure loss through the dripline please refer to "Table1-Dripline" Worksheet in this file or Geoflow Design Guidelines or Geoflow's Flushing worksheet.
C73: These are all available online at www.geoflow.com or by phoning 800-828-3388.
C75: Flushline
C76: Inside Diameter | D76: =VLOOKUP(D$79,$C$109:$H$168,5,FALSE) -> 0.622
C77: Pipe Code selected | D77: =IF(D27=C89,D89,E77) -> A | E77: =IF(D27=C90,D90,F77) -> False | F77: =IF(D27=C92,D92,G77) -> False | G77: =IF(D27=C92,D92,"False") -> False
C78: Diameter Code selected | D78: =+D28 -> 1/2"
C79: Pip + ID Code | D79: =CONCATENATE(D77,D78) -> A1/2"
C81: Supply Line
C82: Inside Diameter | D82: =VLOOKUP(D$85,$C$109:$H$168,5,FALSE) -> 1.61
C83: Pipe Code selected | D83: =IF(D52=C89,D89,E83) -> A | E83: =IF(J56=C90,D90,F83) -> False | F83: =IF(J56=C91,D91,G83) -> False | G83: =IF(J56=C91,D91,"False") -> False
C84: Diameter Code selected | D84: =+D53 -> 1-1/2"
C85: Pip + ID Code | D85: =CONCATENATE(D83,D84) -> A1-1/2"
C87: Drop Down Lists | E87: Drop Down Lists
C88: Types of pipe | D88: Code | E88: Diameters | F88: Code
C89: PVC schedule 40 | D89: A | E89: Column1 | F89: Column2
C90: PVC schedule 80 | D90: B | E90: 1/2" | F90: 1
C91: PVC Series 200 | D91: C | E91: 5/8" | F91: 2
C92: PVC Series 160 | D92: D | E92: 3/4" | F92: 3
C93: HDPE IPS SDR9 | E93: 1" | F93: 4
C94: HDPE IPS SDR11 | E94: 1-1/4" | F94: 5
C95: HDPE IPS SDR13 | E95: 1-1/2" | F95: 6
C96: HDPE IPS SDR17 | E96: 2" | F96: 7
C97: HDPE SIDR 9 (160 Pump Drop) | E97: 2-1/2" | F97: 8
C98: HDPE CTS 3408 | E98: 3" | F98: 9
C99: PEX CTS SDR9 | E99: 4" | F99: 10
E100: 5" | F100: 11
E101: 6" | F101: 12
E102: 8" | F102: 13
E103: 10" | F103: 14
E104: 12"
C106: Number | D106: Nominal size | E106: OD | F106: Wall thickness | G106: ID | H106: HW
D107: Inches | E107: Inches | G107: Inches | H107: Coefficient
C108: =C89 -> PVC schedule 40 | F108: Inches
C109: =CONCATENATE($D$89,E90,) -> A1/2" | D109: 0.5 | E109: 0.84 | F109: 0.109 | G109: 0.622 | H109: 150
C110: =CONCATENATE($D$89,E91,) -> A5/8" | E110: NA | F110: NA | G110: NA
C111: A3/4" | D111: 0.75 | E111: 1.05 | F111: 0.113 | G111: 0.824 | H111: 150
C112: A1" | D112: 1 | E112: 1.315 | F112: 0.133 | G112: 1.049 | H112: 150
C113: A1-1/4" | D113: 1.25 | E113: 1.66 | F113: 0.14 | G113: 1.38 | H113: 150
C114: A1-1/2" | D114: 1.5 | E114: 1.9 | F114: 0.145 | G114: 1.61 | H114: 150
C115: A2" | D115: 2 | E115: 2.375 | F115: 0.154 | G115: 2.069 | H115: 150
C116: A2-1/2" | D116: 2.5 | E116: 2.875 | F116: 0.203 | G116: 2.469 | H116: 150
C117: A3" | D117: 3 | E117: 3.5 | F117: 0.216 | G117: 3.068 | H117: 150
C118: A4" | D118: 4 | E118: 4.5 | F118: 0.237 | G118: 4.026 | H118: 150
C119: A5" | D119: 5 | E119: 5.563 | F119: 0.258 | G119: 5.047 | H119: 150
C120: A6" | D120: 6 | E120: 6.625 | F120: 0.28 | G120: 6.065 | H120: 150
C121: A8" | D121: 8 | E121: 8.625 | F121: 0.322 | G121: 7.981 | H121: 150
C122: A10" | D122: 10 | E122: 10.75 | F122: 0.365 | G122: 10.02 | H122: 150
C123: =CONCATENATE('[1]T4-PVC'!$Y$14,'[1]T4-PVC'!AC73,) -> 
C124: =C90 -> PVC schedule 80
C125: =CONCATENATE($D$90,E90,) -> B1/2" | D125: 0.5 | E125: 0.84 | F125: 0.147 | G125: 0.546 | H125: 150
C126: =CONCATENATE($D$90,E91,) -> B5/8" | E126: NA | F126: NA | G126: NA
C127: B3/4" | D127: 0.75 | E127: 1.05 | F127: 0.154 | G127: 0.742 | H127: 150
C128: B1" | D128: 1 | E128: 1.315 | F128: 0.179 | G128: 0.957 | H128: 150
C129: B1-1/4" | D129: 1.25 | E129: 1.66 | F129: 0.191 | G129: 1.278 | H129: 150
C130: B1-1/2" | D130: 1.5 | E130: 1.9 | F130: 0.2 | G130: 1.5 | H130: 150
C131: B2" | D131: 2 | E131: 2.375 | F131: 0.218 | G131: 1.939 | H131: 150
C132: B2-1/2" | D132: 2.5 | E132: 2.875 | F132: 0.276 | G132: 2.323 | H132: 150
C133: B3" | D133: 3 | E133: 3.5 | F133: 0.3 | G133: 2.9 | H133: 150
C134: B4" | D134: 4 | E134: 4.5 | F134: 0.337 | G134: 3.826 | H134: 150
C135: B5" | D135: 5 | E135: 5.563 | F135: 0.375 | G135: 4.813 | H135: 150
C136: B6" | D136: 6 | E136: 6.625 | F136: 0.432 | G136: 5.761 | H136: 150
C137: B8" | D137: 8 | E137: 8.625 | F137: 0.5 | G137: 7.625 | H137: 150
C138: B10" | D138: 10 | E138: 10.75 | F138: 0.593 | G138: 9.564 | H138: 150
C139: =C91 -> PVC Series 200 | H139: 150
C140: =CONCATENATE($D$91,E90,) -> C1/2" | D140: 0.5 | E140: NA | F140: NA | G140: NA | H140: 150
C141: =CONCATENATE($D$91,E91,) -> C5/8" | E141: NA | F141: NA | G141: NA | H141: 150
C142: C3/4" | D142: 0.75 | E142: 1.05 | F142: 0.06 | G142: 0.93 | H142: 150
C143: C1" | D143: 1 | E143: 1.315 | F143: 0.063 | G143: 1.189 | H143: 150
C144: C1-1/4" | D144: 1.25 | E144: 1.66 | F144: 0.079 | G144: 1.502 | H144: 150
C145: C1-1/2" | D145: 1.5 | E145: 1.9 | F145: 0.09 | G145: 1.72 | H145: 150
C146: C2" | D146: 2 | E146: 2.375 | F146: 0.113 | G146: 2.149 | H146: 150
C147: C2-1/2" | D147: 2.5 | E147: 2.875 | F147: 0.137 | G147: 2.601 | H147: 150
C148: C3" | D148: 3 | E148: 3.5 | F148: 0.167 | G148: 3.166 | H148: 150
C149: C4" | D149: 4 | E149: 4.5 | F149: 0.214 | G149: 4.072 | H149: 150
C150: C5" | D150: 5 | E150: NA | F150: NA | G150: NA | H150: 150
C151: C6" | D151: 6 | E151: 6.625 | F151: 0.316 | G151: 5.993 | H151: 150
C152: C8" | D152: 8 | E152: 8.625 | F152: 0.41 | G152: 7.805 | H152: 150
C153: C10" | D153: 10 | E153: NA | F153: NA | G153: NA | H153: 150
C154: =C92 -> PVC Series 160 | E154: NA | F154: NA | G154: NA | H154: 150
C155: =CONCATENATE($D$92,E90,) -> D1/2" | D155: 0.5 | E155: NA | F155: NA | G155: NA | H155: 150
C156: =CONCATENATE($D$92,E91,) -> D5/8" | E156: NA | F156: NA | G156: NA | H156: 150
C157: D3/4" | D157: 0.75 | E157: NA | F157: NA | G157: NA | H157: 150
C158: D1" | D158: 1 | E158: NA | F158: NA | G158: NA | H158: 150
C159: D1-1/4" | D159: 1.25 | E159: 1.66 | F159: 0.064 | G159: 1.532 | H159: 150
C160: D1-1/2" | D160: 1.5 | E160: 1.9 | F160: 0.08 | G160: 1.74 | H160: 150
C161: D2" | D161: 2 | E161: 2.375 | F161: 0.091 | G161: 2.193 | H161: 150
C162: D2-1/2" | D162: 2.5 | E162: 2.875 | F162: 0.11 | G162: 2.655 | H162: 150
C163: D3" | D163: 3 | E163: 3.5 | F163: 0.135 | G163: 3.23 | H163: 150
C164: D4" | D164: 4 | E164: 4.5 | F164: 0.173 | G164: 4.154 | H164: 150
C165: D5" | D165: 5 | E165: 5.563 | F165: 0.214 | G165: 5.135 | H165: 150
C166: D6" | D166: 6 | E166: 6.625 | F166: 0.255 | G166: 6.115 | H166: 150
C167: D8" | D167: 8 | E167: 8.625 | F167: 0.332 | G167: 7.961 | H167: 150
C168: D10" | D168: 10 | E168: 10.75 | F168: 0.413 | G168: 9.924 | H168: 150
C169: =CONCATENATE(#REF!,'[1]T4-PVC'!AC118,) ->  | E169: 12.75 | F169: 0.49 | G169: 11.77 | H169: 150

Sheet Parts List
A2: GEOFLOW PARTS LIST | I2: =Intro.!P4 -> Updated Jan. 2015
A3: Job Description: | C3: =+'Worksht1 - Field Flow'!D3:F3 -> 
A4: Contact: | C4: =+'Worksht1 - Field Flow'!D4:F4 -> 
A5: Prepared by: | C5: =+'Worksht1 - Field Flow'!D5:F5 -> 
A6: Date: | C6: =+'Worksht1 - Field Flow'!D6:F6 -> 
A8: Some of the following parts list will "self fill" as a guide and should not be construed as a complete parts list. Check item numbers and quantities against design layout.
A9: Most "Item Number" cells have a drop down menu to select from. Just click mouse on the desired cell to find dropdown arrow
A10: Recommended list prices are subject to change. For actual prices contact your local Geoflow dealer
A11: Prices for large systems may be overstated in this scenario
A12: Worksheet 3 - Parts List
A14: Qty | B14: Units | C14: Item Number | E14: Description
A15: Dripline
A16: =+'Worksht1 - Field Flow'!E23*'Worksht1 - Field Flow'!E19 -> 318 | B16: ft. | C16: =IF('Worksht1 - Field Flow'!E25= Macros!A4,Macros!A115,Macros!B115) -> WFPC16-2-24 | E16: =+IF(C16="WF 16 4 06","Wasteflow Classic - 1 gph, 6in. Emitter spacing",Macros!D115) -> Wasteflow PC . 1/2gph, 24in. emitter spacing
A17: Airvent and box
A18: =+'Worksht1 - Field Flow'!E19*2 -> 2 | B18: ea. | C18: APVBK-1 | E18: =IF(C18=B146,C146,D147) -> 1" airvent for use on zones less than 50gpm
A19: =+A18 -> 2 | B19: ea. | C19: AV BOX 6 inch | E19: =IF(C19=B148,C148,C149) -> 6" round box
A20: Pressure Regulators - Use to keep pressure from being too high
A21: =+'Worksht1 - Field Flow'!E19 -> 1 | B21: ea. | C21: Select | E21: =IF(C21=B151,C151,F152) -> Restricts pressure from exceeding required pressure. Required with Classic dripline.
A22: Controllers
A23: 1 | B23: ea. | E23: =E71 -> Select Controller from list left
A24: Pre-assembled Headworks
A25: Select from cell with | C25: =+'Worksht1 - Field Flow'!E45 -> Select Filter | J25: =IF('Worksht2 - Pump Sizing'!$E$19="Select filter","-",'Worksht2 - Pump Sizing'!$E$19) -> Select filter above
A26: =IF(C25="Vortex Screen Filter",1,0) -> 0 | B26: =IF(A26=1,"ea.","-") -> - | C26: WHWS-V-1F-A | E26: =IF(AND($J$25=B133,B134,B135,B136),"Select Vortex Headworks here",E93) -> Sporty Headworks box & guts with 1" Vortex Filter. Automatic flush
A27: =IF(C25="BioDisc filter",1,0) -> 0 | B27: =IF(A27=1,"ea.","-") -> - | C27: BIODISC Filter Headworks | E27: =IF(AND($J$25=B137,B138),E112,E113) -> -
A28: =IF(C25="GeoVac Screen Filter",1,0) -> 0 | B28: =IF(A28=1,"ea.","-") -> - | C28: GEOVAC filter Headworks | E28: =IF(AND($J$25=B139,B140,B141,B142,B143),"Select GeoVac Headworks here",E126) -> -
A29: * Solenoid Flush valves - Select only if Headworks is not selected above
B30: ea. | C30: SVLV-B-100 | E30: =IF($C$30=B169,C169,G170) -> Flush valves
A31: * Filters - Select only if Headworks is not selected above
B32: ea. | C32: =+Macros!A43 -> ConsultFActory | E32: =IF(C32=B133,C133,E134) -> 0
A33: * Pressure Gauges - Select only if Headworks is not selected above
B34: ea. | C34: PG-25-Lead | E34: =IF(C34=B195,C195,C196) -> Presssure gauge with lead
A35: Flow Meters
A36: 1 | B36: ea. | C36: Flow Meter - Digital Display | E36: =IF(C36=B207,"Select Flow Meter",D208) -> Select Flow Meter
A37: Zone valves -
A38: =IF(AND('Worksht1 - Field Flow'!E47="Electric Solenoid",'Worksht1 - Field Flow'!E19>1),'Worksht1 - Field Flow'!E19,0) -> 0 | B38: ea. | C38: ='Worksht1 - Field Flow'!E48 -> 0 | E38: =IF(C38=B169,C169,F170) -> 0
A39: Dripline fittings - Quantities below are estimates only.
A40: =+'Worksht1 - Field Flow'!E38*'Worksht1 - Field Flow'!E19*2 -> 2 | B40: ea. | C40: LTSLIP-600 | E40: Lockslip Adapter. 3/4" PVC slip to Wasteflow dripline
A41: =+A16/500*2 -> 1.272 | B41: ea. | C41: LTC-600 | E41: This adds 2 couplings for each coil ordered.
B42: ea. | C42: LTTEE-600 | E42: Lockslip Tee. Fits 16mm Wasteflow dripline
B43: ea. | C43: LTELL-600 | E43: Lockslip Elbow. Fits 16mm Wasteflow dripline
B44: ea. | C44: LTFlex-R-18 | E44: 18" flex PVC riser with 1 lockslip adapter. Used for risers
B45: ea. | C45: LTFlex-L-36 | E45: 36" flex PVC with 2 lockslip adapters. Used for risers or loops
A46: Check Valves - Check design for quantities
B47: ea. | C47: CV-B-10 | E47: =IF(C47=B179,C179,E180) -> 1" True Union ball check PVC/Viton
B48: ea. | C48: Spring check | E48: =IF(C48=B185,C185,E186) -> Select size from drop down menu left
A49: Unions
B50: ea. | C50: Unions | E50: =+D221 -> 0
G51: Subtotal
A53: Non-Geoflow items
B54: ea. | C54: Pump Capacity (gpm) | E54: =+'Worksht2 - Pump Sizing'!D60 ->  | F54: gpm
C55: TDH (ft) | E55: =+'Worksht2 - Pump Sizing'!D61 -> 2.884682917 | F55: ft of head
B56: ea. | C56: Pump tank | E56: Fill in description
B57: ea. | C57: Floats | E57: Fill in description
B58: ft. | C58: PVC mainline | E58: Fill in description
B59: ft. | C59: PVC Supply manifold (inches) | E59: =+'Worksht2 - Pump Sizing'!D53 -> 1-1/2" | F59: " PVC pipe
B60: ft. | C60: PVC Return manifold (inches) | E60: =+'Worksht2 - Pump Sizing'!D28 -> 1/2" | F60: =+F59 -> " PVC pipe
A61: =+A40/2 -> 1 | B61: ea. | C61: PVC Supply manifold tees | E61: =+E59 -> 1-1/2" | F61: " x 3/4 " tees
A62: =+A40/2 -> 1 | B62: ea. | C62: PVC Return manifold tees | E62: =+E60 -> 1/2" | F62: " x 3/4 " tees
C63: PVC parts - Misc
G66: Total | H66: =SUM(H54:H65)+H51 -> 0
A69: - PLEASE DO NOT WORK BELOW THIS LINE. TABLES ARE STORED HERE THAT WILL AFFECT AUTOMATIC CELL FILLS | H69: - PLEASE DO NOT WORK BELOW THIS LINE. TABLES ARE STORED HERE THAT WILL AFFECT AUTOMATIC CELL FILLS | W69: - PLEASE DO NOT WORK BELOW THIS LINE. TABLES ARE STORED HERE THAT WILL AFFECT AUTOMATIC CELL FILLS
A70: Controllers | B70: Select Controller
B71: Logo controllers: | C71: Logo PLC controllers | E71: =IF($C$23=B71,C71,E72) -> Select Controller from list left | G71: =IF($C$23=B71,F71,G72) -> 0
B72: GEO1-SIM-MAN | C72: 1 zone,115/230VAC, Simplex pump, 1 phase, 3/4 hp max, Manual flush | E72: Select Controller from list left | F72: 875 | G72: 0
B73: GEO1-SIM-AUT | C73: 1 zone,115/230VAC, Simplex pump, 1 phase, 3/4 hp max, Automaticl flush | E73: Select Controller from list left | F73: 1043 | G73: 0
B74: GEO1-DUP-MAN | C74: 1 zone,115/230VAC, Duplex pump, 1 phase, 3/4 hp max, Manual flush | E74: Select Controller from list left | F74: 1160 | G74: 0
B75: GEO1-DUP-AUT | C75: 1 zone,115/230VAC, Duplex pump, 1 phase, 3/4 hp max, Automatic flush | E75: Select Controller from list left | F75: 1485 | G75: 0
B76: GEO4-SIM-AUT | C76: 2-4 zone,115/230VAC, Simplex pump, 1 phase, 2 hp max, Automatic flush | E76: Select Controller from list left | F76: 1671 | G76: 0
B77: GEO4--DUP-AUT | C77: 2-4 zone,115/230VAC, Duplex pump, 1 phase, 2 hp max, Automatic flush | E77: Select Controller from list left | F77: 1971 | G77: 0
B78: GEO8-SIM-AUT | C78: 5-8 zone,115/230VAC, Simplex pump, 1 phase, 2 hp max, Automatic flush | E78: Select Controller from list left | F78: 2054 | G78: 0
B79: GEO8-DUP-AUT | C79: 5-8 zone,115/230VAC, Duplex pump, 1 phase, 2 hp max, Automatic flush | E79: Select Controller from list left | F79: 2860 | G79: 0
B80: Touchscreen controllers: | C80: PLC controller with touchscreen interface | E80: Select Controller from list left | G80: 0
B81: GEOTS-08-SIM | C81: 1 -8 zone Touchscreen, simplex pump, Auto flush | E81: Select Controller from list left | F81: 3400 | G81: 0
B82: GEOTS-08-DUP | C82: 1 -8 zone Touchscreen, duplex pump, Auto flush | E82: Select Controller from list left | F82: =+F81 -> 3400 | G82: 0
B83: GEOTS-16-SIM | C83: 9-16 zone Touchscreen, simplex pump, Auto flush | E83: Select Controller from list left | F83: 4000 | G83: 0
B84: GEOTS-16-DUP | C84: 9-16 zone Touchscreen, duplex pump, Auto flush | E84: =IF($C$23=B84,C84,E85) -> Select Controller from list left | F84: =+F83 -> 4000 | G84: 0
B85: GEOTS-24-SIM | C85: 17-24 zone Touchscreen, simplex pump, Auto flush | E85: =IF($C$23=B85,C85,E86) -> Select Controller from list left | F85: 4500 | G85: 0
B86: GEOTS-24-DUP | C86: 17-24 zone Touchscreen, duplex pump, Auto flush | E86: =IF($C$23=B86,C86,"Select Controller from list left") -> Select Controller from list left | F86: =+F85 -> 4500 | G86: 0
B87: Controller Lightening Box
B88: GEOLITE 4 | C88: 4 float lightening relay
A90: VORTEX filter headworks | F90: List price
B91: VORTEX filter headworks | G91: =IF($C$26=B92,F92,G93) -> 710
B92: SPORTY Headworks | G92: =IF($C$26=B93,F93,G94) -> 710
B93: WHWS-V-75F-A | C93: Sporty Headworks box & guts with 3/4" Vortex Filter. Automatic flush | E93: =IF($C$26=B93,C93,E94) -> Sporty Headworks box & guts with 1" Vortex Filter. Automatic flush | F93: 710 | G93: =IF($C$26=B93,F93,G94) -> 710
B94: WHWS-V-75F-M | C94: Sporty Headworks box & guts with 3/4" Vortex Filter. Manual flush | E94: Sporty Headworks box & guts with 1" Vortex Filter. Automatic flush | F94: 610 | G94: =IF($C$26=B94,F94,G95) -> 710
B95: WHWS-V-1F-A | C95: Sporty Headworks box & guts with 1" Vortex Filter. Automatic flush | E95: Sporty Headworks box & guts with 1" Vortex Filter. Automatic flush | F95: 710 | G95: 710
B96: WHWS-V-1F-M | C96: Sporty Headworks box & guts with 1" Vortex Filter. Manual flush | E96: - | F96: 610 | G96: 0
B97: WHWS-V-1.5F-A | C97: Sporty Headworks box & guts with 1.5" Vortex Filter. Automatic flush | E97: - | F97: 1170 | G97: 0
B98: WHWS-V-1.5F-M | C98: Sporty Headworks box & guts with 1.5" Vortex Filter. Manual flush | E98: - | F98: 972 | G98: 0
B99: WHWS-V-2F-A | C99: Sporty Headworks box & guts with 2" Vortex Filter. Automatic flush | E99: - | F99: 1251 | G99: 0
B100: WHWS-V-2F-M | C100: Sporty Headworks box & guts with 2" Vortex Filter. Manual flush | E100: - | F100: 1018 | G100: 0
B101: ULTRA Vortex Headworks - DDS | C101: Flow meter has digital diplay in headworks, not logged on controller | E101: - | G101: 0
B102: WHWU-75F-V-A-DDS | C102: Ultra. Vortex Filter Max 10 gpm, Auto flush in WHWU-Box-S, 1" Flow meter w/ local display | E102: =IF($C$26=B102,C102,E103) -> - | F102: 1837.42 | G102: 0
B103: WHWU-1F-V-A-DDS | C103: Ultra. 1" Vortex Filter max 20gpm, Auto flush, 1"Flow meter w/ local display | E103: - | F103: 1888 | G103: 0
B104: WHWU-1.5F-V-A-DDS | C104: Ultra. 1.5" Vortex Filter max 45 gpm, Auto flush, 1.5" Flow meter w/ local display | E104: - | F104: 2341 | G104: 0
B105: WHWU-2F-V-A-DDS | C105: Ultra. 2" Vortex Filter max 70gpm, Auto flush,1.5" Flow meter w/ local display | E105: - | F105: 2476 | G105: 0
B106: ULTRA Vortex Headworks -PLS | C106: Used with GeoTS controllers where flow rates are logged | E106: - | G106: 0
B107: WHWU-75F-V-A-PLS | C107: Ultra. 3/4" Vortex Filter Max 10 gpm, Auto flush, 1" flow meter for GeoTS | E107: - | F107: 2138 | G107: 0
B108: WHWU-1F-V-A-PLS | C108: Ultra. 1" Vortex Filter max 20gpm, Auto flush, 1" flow meter for GeoTS | E108: - | F108: 2142 | G108: 0
B109: WHWU-1.5F-V-A-PLS | C109: Ultra. 1.5" Vortex Filter max 45 gpm, Auto flush, 1.5" flow meter for GeoTS | E109: - | F109: 2961 | G109: 0
B110: WHWU-2F-V-A-PLS | C110: Ultra. 2" Vortex Filter max 70gpm, Auto flush, 1.5" flow meter for GeoTS | E110: - | F110: 3095 | G110: 0
E111: -
A112: Headworks | B112: BIODISC Filter Headworks | C112: Select BioDisc Filter Headworks here | E112: =IF($C$27=B112,C112,E113) -> Select BioDisc Filter Headworks here
B113: SPORTY BioDisc Headworks | C113: Select BioDisc Sporty Headworks model from the list left | E113: =IF($C$27=B113,C113,E114) -> - | G113: =IF($C$27=B113,F113,G114) -> 0
B114: WHWS-D-1.5F-M | C114: Sporty Headworks with single 1.5" BioDisc Filter. Manual flush | E114: =IF($C$27=B114,C114,E115) -> - | F114: 815 | G114: =IF($C$27=B114,F114,G115) -> 0
B115: WHWS-D-1.5F-A | C115: Sporty Headworks with single 1.5" BioDisc Filter. Automatic field flush | E115: =IF($C$27=B115,C115,E116) -> - | F115: 770 | G115: 0
B116: WHWS-D-2F-M | C116: Sporty Headworks with single 2" BioDisc Filter. Manual flush | E116: - | F116: 945 | G116: 0
B117: WHWS-D-2F-A | C117: Sporty Headworks box with single 2" BioDisc Filter. Automaticf ield flush | E117: - | F117: 900 | G117: 0
B118: ULTRA BioDisc Headworks-PLS | C118: Used with GeoTS controllers where flow rates are logged | E118: - | G118: 0
B119: WHWU-1.5F-D-A-PLS | C119: Ultra. 1.5" BioDisc (x2). Max 30 gpm, Auto flush, 1.5" flow meter for GeoTS | E119: - | F119: 3250 | G119: 0
B120: WHWU-2F-D-A-PLS | C120: Ultra. 2" BioDisc Filter (x2). Max 60gpm, Auto flush, 1.5" flow meter for GeoTS | E120: - | F120: 3395 | G120: 0
B121: ULTRA BioDisc Headworks-DDS | C121: Flow meter has digital diplay in headworks, not logged on controller | E121: - | G121: 0
B122: WHWU-1.5F-D-A-DDS | C122: Ultra. 1.5" BioDisc (x2). Max 30 gpm, Auto flush, 1.5" Flow meter w/ local display | E122: - | F122: 2600 | G122: 0
B123: WHWU-2F-D-A-DDS | C123: Ultra. 2" BioDisc Filter (x2). Max 60gpm, Auto flush, 1.5" Flow meter w/ local display | E123: - | F123: 2756 | G123: 0
E124: -
B125: GEOVAC filter Headworks
B126: =Macros!A51 -> BioDisc Filter-150 | C126: 2" Filter. Vacuum screen cleaning. Stainless 30-75 gpm. Victaulic connections, 1.5" flush valve,35psi min | E126: =IF($C$28=B126,C126,E127) -> - | F126: 3160 | G126: =IF($C$28=B126,F126,G127) -> 0
B127: =Macros!A52 -> BioDisc Filter-200 | C127: 3" filter . Vacuum screen cleaning. Stainless 40-150gpm, victaulic connections,1.5" flush valve,35psi min | E127: =IF($C$28=B127,C127,E128) -> - | F127: 8400 | G127: =IF($C$28=B127,F127,G128) -> 0
B128: =Macros!A53 -> 0 | C128: 4" Filter. Vacuum screen cleaning. Stainless 40-250 gpm. Victaulic connections, 1.5" flush valve,35psi min | E128: =IF($C$28=B128,C128,E129) -> - | F128: 11000 | G128: =IF($C$28=B128,F128,G129) -> 0
B129: =Macros!A54 -> 0 | C129: 6" Filter. Vacuum screen cleaning. Stainless 40-500 gpm. Victaulic connections, 2" flush valve,35psi min | E129: =IF($C$28=B129,C129,E130) -> - | F129: 17500 | G129: =IF($C$28=B129,F129,G130) -> 0
B130: =Macros!A55 -> 0 | C130: 8" Filter. Vacuum screen cleaning. Stainless 50-700 gpm. Victaulic connections, 2" flush valve,35psi min | E130: =IF($C$28=B130,C130,E131) -> - | F130: 21000 | G130: =IF($C$28=B130,F130,G131) -> 0
E131: -
A132: Filters
B133: AP4E-.75F | C133: 3/4" screen filter. Plastic body. MIPT. Up to 10 gpm | F133: 41.2
B134: AP4E-1F | C134: 1" screen filter. Plastic body. MIPT. Up to 20 gpm | E134: =IF($C$32=B134,C134,E135) -> 0 | F134: 52.97
B135: AP4E-1.5F | C135: 1.5" screen filter. Plastic body. MIPT. Up to 45 gpm | E135: 0 | F135: 270.71
B136: AP4E-2F | C136: 2" screen filter. Plastic body. MIPT. Up to 70 gpm | E136: 0 | F136: 411.95
B137: BioDisc-150 | C137: 1.5" Disc filter with Geoshield protection - Max 30gpm | E137: 0 | F137: 140
B138: BioDisc-200 | C138: 2" Disc filter with Geoshield protection - Max 60gpm | E138: 0 | F138: 270
B139: GeoVac75-02 | C139: 2" Filter with vacuum screen cleaning. Stainless 20-75 gpm. Victaulic connections | E139: 0 | F139: =IF($C$32=B139,C139,F140) -> 0
B140: GeoVac150-03 | C140: 3" filter with vacuum screen cleaning. Stainless 20-150 gpm. Victaulic connections | E140: 0 | F140: =IF($C$32=B140,C140,F141) -> 0
B141: GeoVac250-04 | C141: 4" filter with vacuum screen cleaning. Stainless 20-300 gpm. Victaulic connections | E141: 0 | F141: =IF($C$32=B141,C141,F142) -> 0
B142: GeoVac500-06 | C142: 6" filter with vacuum screen cleaning. Stainless 20-600 gpm. Victaulic connections. | E142: 0 | F142: =IF($C$32=B142,C142,F143) -> 0
B143: GeoVac700-08 | C143: 8" filter with vacuum screen cleaning. Stainless 20-900 gpm. Victaulic connections | E143: 0 | F143: =IF($C$32=B143,C143,F144) -> 0
A144: Air vents
B145: ARV-05 | C145: 1/2" air vent | E145: 7.4
B146: APVBK-1 | C146: 1" airvent for use on zones less than 50gpm | E146: 21.19
B147: APVBK-2 | C147: 2" airvent | D147: =IF(C18=B147,C147,"Select airvent") -> Select airvent | E147: 185.5
B148: AV BOX 6 inch | C148: 6" round box | E148: 10.59
B149: AV BOX 10 inch | C149: 10" round box | E149: 32.98
G150: List Price
A151: Pressure Regulators | B151: Select | C151: Restricts pressure from exceeding required pressure. Required with Classic dripline. | G151: 0
B152: PMR20-LF: 1/8-8gpm | C152: 20 psi regulator. 1/8-8 gpm 3/4" FIPT | F152: =IF($C$21=B152,C152,F153) -> Select Pressure Regulator | G152: 23.54 | H152: =IF($C$21=B152,G152,H153) -> List Price
B153: PMR-20MF : 2-20 gpm | C153: 20 psi regulator. 2-20 gpm 1" FIPT | F153: Select Pressure Regulator | G153: 23.54 | H153: =IF($C$21=B153,G153,H154) -> List Price
B154: PMR20-HF : 10-32 gpm | C154: 20 psi regulator. 10-32 gpm 1.25" FIPT | F154: Select Pressure Regulator | G154: 43.55 | H154: List Price
B155: PMR20-XF : 20-90 psi | C155: 20 psi regulator. 20-90 gpm 3" ID Socket | F155: Select Pressure Regulator | G155: 170 | H155: List Price
B156: PMR30-LF: 1/8-8gpm | C156: 30 psi regulator. 1/8-8 gpm 3/4" FIPT | F156: Select Pressure Regulator | G156: =+G152 -> 23.54 | H156: List Price
B157: PMR-30MF : 2-20 gpm | C157: 30 psi regulator. 2-20 gpm 1" FIPT | F157: Select Pressure Regulator | G157: =+G153 -> 23.54 | H157: List Price
B158: PMR30-HF : 10-32 gpm | C158: 30 psi regulator. 10-32 gpm 1.25" FIPT | F158: Select Pressure Regulator | G158: =+G154 -> 43.55 | H158: List Price
B159: PMR30-XF : 20-90 psi | C159: 30 psi regulator. 20-90 gpm 3" ID Socket | F159: Select Pressure Regulator | G159: =+G155 -> 170 | H159: List Price
B160: PMR40-LF: 1/8-8gpm | C160: 40 psi regulator. 1/8-8 gpm 3/4" FIPT | F160: Select Pressure Regulator | G160: =+G152 -> 23.54 | H160: List Price
B161: PMR40-MF : 2-20 gpm | C161: 40 psi regulator. 2-20 gpm 1" FIPT | F161: Select Pressure Regulator | G161: =+G153 -> 23.54 | H161: List Price
B162: PMR40-HF : 10-32 gpm | C162: 40 psi regulator. 10-32 gpm 1.25" FIPT | F162: Select Pressure Regulator | G162: =+G154 -> 43.55 | H162: List Price
B163: PMR40-XF : 20-90 psi | C163: 40 psi regulator. 20-90 gpm 3" ID Socket | F163: Select Pressure Regulator | G163: =+G155 -> 170 | H163: List Price
F164: Select Pressure Regulator | G164: =+G152 -> 23.54 | H164: List Price
B165: PMR50-MF : 2-20 gpm | C165: 50 psi regulator. 2-20 gpm 1" FIPT | F165: Select Pressure Regulator | G165: =+G153 -> 23.54 | H165: List Price
B166: PMR50-HF : 10-32 gpm | C166: 50 psi regulator. 10-32 gpm 1.25" FIPT | F166: Select Pressure Regulator | G166: =+G154 -> 43.55 | H166: List Price
B167: PMR50-XF : 20-90 psi | C167: 50 psi regulator. 20-90 gpm 3" ID Socket | F167: =IF($C$21=B167,C167,"Select Pressure Regulator") -> Select Pressure Regulator | G167: =+G155 -> 170 | H167: =IF($C$21=B167,G167,E168) -> List Price
A168: Solenoids - Bermad | E168: List Price
B169: SVLVB-100 | C169: 1" Solenoid valve. 24V,FPT,Normally closed. | E169: 88.2 | F169: Zone valves | G169: Flush valves
B170: SVLVB-150 | C170: 1.5" Solenoid valve. 24V,FPT,Normally closed. | D170: =IF($C$38=B170,E170,D171) -> 0 | E170: 151.3 | F170: =IF($C$38=B170,C170,F171) -> 0 | G170: =IF($C$30=B170,C170,G171) -> Flush valves | H170: =IF($C$30=B170,E170,H171) -> 0
B171: SVLVB-200 | C171: 2" Solenoid valve. 24V,FPT,Normally closed. | D171: =IF($C$38=B171,E171,D172) -> 0 | E171: 309 | F171: 0 | G171: =IF($C$30=B171,C171,G172) -> Flush valves | H171: =IF($C$30=B171,E171,H172) -> 0
B172: SVLVB-300 | C172: 3" Solenoid valve. 24V,FPT,Normally closed. | D172: 0 | E172: 484.5 | F172: 0 | G172: =IF($C$30=B172,C172,G173) -> Flush valves | H172: =IF($C$30=B172,E172,H173) -> 0
A173: Hydrotek | B173: =+Macros!H71 -> HT-4402 | C173: Hydraulic valve for 2 zones | D173: 0 | E173: 125 | F173: 0 | G173: Flush valves
B174: =+Macros!H72 -> HT-4403 | C174: Hydraulic valve for 3 zones | D174: 0 | E174: =+E173 -> 125 | F174: 0
B175: =+Macros!H73 -> HT-4404 | C175: Hydraulic valve for 4 zones | D175: 0 | E175: =+E174 -> 125 | F175: 0
B176: =+Macros!H74 -> HT-4605 | C176: Hydraulic valve for 5 zones | D176: 0 | E176: =+E175 -> 125 | F176: 0
B177: =+Macros!H75 -> HT-4606 | C177: Hydraulic valve for 6 zones | D177: 0 | E177: =+E176 -> 125 | F177: 0
A178: Check valve
B179: Ball check with true unions | C179: Select size from drop down menu left
B180: CV-B-05 | C180: 1/2" True Union ball check PVC/Viton | E180: =IF($C$47=B180,C180,E181) -> 1" True Union ball check PVC/Viton | F180: 42.4 | G180: =IF($C$47=B180,F180,G181) -> 59.47
B181: CV-B-10 | C181: 1" True Union ball check PVC/Viton | E181: =IF($C$47=B181,C181,E182) -> 1" True Union ball check PVC/Viton | F181: 59.47 | G181: =IF($C$47=B181,F181,G182) -> 59.47
B182: CV-B-15 | C182: 1.5" True Union ball check PVC/Viton | E182: =IF($C$47=B182,C182,E183) -> Select size from drop down menu left | F182: 99.3 | G182: =IF($C$47=B182,F182,G183) -> 0
B183: CV-B-20 | C183: 2" True Union ball check PVC/Viton | E183: =IF($C$47=B183,C183,E184) -> Select size from drop down menu left | F183: 135.84 | G183: =IF($C$47=B183,F183,G184) -> 0
B184: CV-B-30 | C184: 3" Ball Check SxS PVC/Viton | E184: =IF($C$47=B184,C184,E185) -> Select size from drop down menu left | F184: 347.51 | G184: =IF($C$47=B184,F184,G185) -> 0
B185: Spring check | C185: Select size from drop down menu left | E185: =IF($C$48=B185,C185,E186) -> Select size from drop down menu left | F185: 0
B186: CV-S-05 | C186: 1/2" Spring check valve. Requires 2psi to open | E186: =IF($C$48=B186,C186,E187) -> 0 | F186: 7.8869052 | G186: =IF($C$48=B186,F186,G187) -> 0
B187: CV-S-10 | C187: 1" Spring check valve. Requires 2psi to open | E187: =IF($C$48=B187,C187,E188) -> 0 | F187: 12.5262612 | G187: =IF($C$48=B187,F187,G188) -> 0
B188: CV-S-15 | C188: 1.5" Spring check valve. Requires 2psi to open | E188: =IF($C$48=B188,C188,E189) -> 0 | F188: 17.2842984 | G188: =IF($C$48=B188,F188,G189) -> 0
B189: CV-S-20 | C189: 2" Spring check valve. Requires 2psi to open | E189: =IF($C$48=B189,C189,E190) -> 0 | F189: 20.823156 | G189: =IF($C$48=B189,F189,G190) -> 0
A191: Plow
B192: Plow | C192: Plow for 3 point hitch | F192: 3800
A194: Pressure gauge
B195: PG-25-LM | C195: Pressure gauge 1/4" NPT. Lower mount | E195: 35.3
B196: PG-25-Lead | C196: Presssure gauge with lead | E196: 54.8
A197: Misc Fittings
B198: LTFlexR-18 | C198: 18" flex PVC riser with 2 x lockslip adapters
B199: LTFlexL-36 | C199: 36" flex PVC with 1 lockslip adapter. Used for loops or risers
B201: LTSLIP-600 | C201: Lockslip Adapter. 1/2" socket (3/4" spigot) x 16mm Wasteflow dripline
B202: LTMPT-600 | C202: Lockslip Adapter. 3/4" MPT x 16mm Wasteflow dripline
B203: LTTEE-600 | C203: Lockslip Tee. Fits 16mm Wasteflow dripline
B204: LTELL-600 | C204: Lockslip Elbow. Fits 16mm Wasteflow dripline
B205: LTC-600 | C205: Lockslip Coupling. Fits 16mm Wasteflow dripline
A207: Flow Meter - Digital Display | B207: Flow Meter - Digital Display
B208: FM-DDS-075 (2-20gpm) | C208: 3/4" FPT Digital Flow Meter with Local Display - 2-20gpm | D208: =IF($C$36=B208,C208,D209) -> 0 | E208: 356.89 | F208: =IF($C$36=B208,E208,F209) -> 0
B209: FM-DDS-100 (5-50gpm) | C209: 1" FPT Digital Flow Meter with Local Display - 5-50gpm | D209: 0 | E209: 403.33 | F209: =IF($C$36=B209,E209,F210) -> 0
B210: FM-DDS-150 (10-100gpm) | C210: 1.5" FPT Digital Flow Meter with Local Display - 10-100gpm | D210: 0 | E210: 449.17 | F210: 0
B211: FM-DDS-200 (20-200gpm) | C211: 2" FPT Digital Flow Meter with Local Display - 20-200gpm | D211: 0 | E211: 492.56 | F211: 0
A212: Flow Meter - Pulse for GeoTS controller | B212: Flow Meter - Pulse for GeoTS controller | C212: Use Pulse flow meters to input flow data to GEOTS Controller | D212: 0 | F212: 0
B213: FM-PLS-100 (5-50gpm) | C213: 1" FPT PVC turbine with pulse output 5-50 gpm | D213: 0 | E213: 652.67 | F213: 0
... 14 more rows

Sheet T1-Dripline
B1: Dripline Tables
B2: Refer to Geoflow's Flow and flushing worksheet for further hydraulic details
B4: Wasteflow Classic
C6: Flow Rate vs. Pressure
C8: Pressure | E8: Dripline
C9: psi | D9: ft. | E9: WF16-4-24 | F9: WF16-4-12
C10: 10 psi | D10: 23.10 ft | E10: 0.90 gph | F10: 0.90 gph
C11: 15 psi | D11: 34.65 ft. | E11: 1.13 gph | F11: 1.13 gph
C12: 20 psi | D12: 46.20 ft. | E12: 1.30gph | F12: 1.30gph
C13: 25 psi | D13: 57.75 ft. | E13: 1.47 gph | F13: 1.47 gph
C14: 30 psi | D14: 69.30 ft. | E14: 1.62 gph | F14: 1.62 gph
C15: 35 psi | D15: 80.85 ft. | E15: 1.76 gph | F15: 1.76 gph
C16: 40 psi | D16: 92.40 ft
C17: 45 psi | D17: 103.95 ft | E17: 1.89 gph | F17: 1.89 gph
C19: Maximum Length of Run vs. Pressure
C20: Flow variation +/- 5%.
C21: Pressure | E21: Emitter Spacing
C22: psi | D22: ft. | E22: 24" | F22: 18" | G22: 12"
C23: 10 psi | D23: 23.10 ft | E23: 170 | F23: 165 | G23: 100
C24: 15 psi | D24: 34.65 ft. | E24: 170 | F24: 165 | G24: 100
C25: 20 psi | D25: 46.20 ft. | E25: 170 | F25: 165 | G25: 100
C26: 25 psi | D26: 57.75 ft. | E26: 170 | F26: 165 | G26: 100
C27: 30 psi | D27: 69.30 ft. | E27: 170 | F27: 165 | G27: 100
C28: 35 psi | D28: 80.85 ft. | E28: 170 | F28: 165 | G28: 100
C29: 40 psi | D29: 92.40 ft | E29: 170 | F29: 165 | G29: 100
C30: 45 psi | D30: 103.95 ft | E30: 170 | F30: 165 | G30: 100
C31: kd = .9, cv = <.05 | J31: Note, when using this length to look up pressure lossses in the dripline,
J32: only the flow going out of the emitters is used, and does not reflect true
J33: pressure loss during flushing. Pressure loss during flushing is self calculated
J34: in the cell below, or can be obtained from Geoflows Flushing spreadsheet.
B37: Wasteflow PC 1/2 gph
C39: Flow Rate vs. Pressure
E41: Dripline
C42: Pressure | D42: Head | E42: WFPC16-2-24 | F42: WFPC16-2-12
C43: 7–60 psi | D43: 16 –139 ft. | E43: 0.53 gph | F43: 0.53 gph
C46: Maximum Length of Run vs. Pressure
C47: Allows a minimum of 10 psi
C48: Pressure | E48: Emitter Spacing
C49: psi | D49: ft. | E49: 6" | F49: 12" | G49: 18" | H49: 24"
C50: 10 psi | D50: 23.10 ft
C51: 15 psi | D51: 34.65 ft. | F51: 174 | G51: 260 | H51: 321
C52: 20 psi | D52: 46.20 ft. | E52: 120 | F52: 229 | G52: 330 | H52: 424
C53: 25 psi | D53: 57.75 ft. | F53: 260 | G53: 377 | H53: 478
C54: 30 psi | D54: 69.30 ft. | E54: 150 | F54: 288 | G54: 415 | H54: 535 | O54: =0.2642*60 -> 15.852
C55: 35 psi | D55: 80.85 ft. | F55: 313 | G55: 448 | H55: 576 | O55: =+O54/3.2808 -> 4.831748354
C56: 40 psi | D56: 92.40 ft | E56: 172 | F56: 330 | G56: 475 | H56: 612 | O56: =+O55*1000 -> 4831.748354
C57: 45 psi | D57: 103.95 ft | F57: 354 | G57: 501 | H57: 651 | O57: =10000/4.8 -> 2083.333333
C58: 50 psi | D58: 115.5 ft. | F58: 363 | G58: 523 | H58: 675
C59: 55 psi | D59: 127.05 ft. | F59: 377 | G59: 544 | H59: 700
C60: 60 psi | D60: 138.6 ft. | F60: 403 | G60: 563 | H60: 727
C61: kd = 2.070 | J61: Note, when using this length to look up pressure lossses in the dripline,
C62: Not recommended | J62: only the flow going out of the emitters is used, and does not reflect true
C63: with pressures | J63: pressure loss during flushing. Pressure loss during flushing is self calculated
C64: greater than 45 psi | J64: in the cell below, or can be obtained from Geoflows Flushing spreadsheet.
B67: Wasteflow PC 1 gph
C69: Flow Rate vs. Pressure
E71: Dripline
C72: Pressure | D72: Head | E72: WFPC16-4-24 | F72: WFPC16-4-12
C73: 7–60 psi | D73: 16 –139 ft. | E73: 1.02 gph | F73: 1.02 gph
C75: Maximum Length of Run vs. Pressure
C76: Allows a minimum of 10 psi
C77: Pressure | E77: Emitter Spacing
C78: psi | D78: ft. | E78: 6" | F78: 12" | G78: 18" | H78: 24"
C79: 10 psi | D79: 23.10 ft | E79: 50 | F79: 95 | G79: 140 | H79: 175
C80: 15 psi | D80: 34.65 ft. | E80: 63 | F80: 115 | G80: 172 | H80: 211
C81: 20 psi | D81: 46.20 ft. | E81: 74 | F81: 146 | G81: 210 | H81: 265
C82: 25 psi | D82: 57.75 ft. | E82: 88 | F82: 171 | G82: 242 | H82: 315
C83: 30 psi | D83: 69.30 ft. | E83: 94 | F83: 180 | G83: 266 | H83: 335
C84: 35 psi | D84: 80.85 ft. | E84: 103 | F84: 199 | G84: 287 | H84: 379
C85: 40 psi | D85: 92.40 ft | E85: 110 | F85: 211 | G85: 305 | H85: 385
C86: 45 psi | D86: 103.95 ft | E86: 116 | F86: 222 | G86: 321 | H86: 429
C87: 50 psi | D87: 115.5 ft. | F87: 232 | G87: 334 | H87: 431
C88: 55 psi | D88: 127.05 ft. | F88: 240 | G88: 347 | H88: 449
C89: 60 psi | D89: 138.6 ft. | F89: 249 | G89: 360 | H89: 465
C90: kd = 2.070 | J90: Note, when using this length to look up pressure lossses in the dripline,
C91: Not recommended | J91: only the flow going out of the emitters is used, and does not reflect true
C92: with pressures | J92: pressure loss during flushing. Pressure loss during flushing is self calculated
C93: greater than 45 psi | J93: in the cell below, or can be obtained from Geoflows Flushing spreadsheet.
B96: Wasteflow PC 0.75 gph
C98: Flow Rate vs. Pressure
E100: Dripline
C101: Pressure | D101: Head | E101: WFPC16-4-24 | F101: WFPC16-4-12
C102: 7–60 psi | D102: 16 –139 ft. | E102: 0.75 gph | F102: 0.75 gph
C104: Maximum Length of Run vs. Pressure
C105: Allows a minimum of 10 psi
C106: Pressure | E106: Emitter Spacing
C107: psi | D107: ft. | F107: 12" | G107: 18" | H107: 24"
C108: 10 psi | D108: 23.10 ft
C109: 15 psi | D109: 34.65 ft. | F109: 140 | G109: 200 | H109: 257
C110: 20 psi | D110: 46.20 ft.
C111: 25 psi | D111: 57.75 ft. | F111: 208 | G111: 299 | H111: 383
C112: 30 psi | D112: 69.30 ft.
C113: 35 psi | D113: 80.85 ft. | F113: 251 | G113: 350 | H113: 462
C114: 40 psi | D114: 92.40 ft
C115: 45 psi | D115: 103.95 ft | F115: 284 | G115: 407 | H115: 522
C116: 50 psi | D116: 115.5 ft.
C117: 55 psi | D117: 127.05 ft.
C118: 60 psi | D118: 138.6 ft.
C119: kd = 2.070 | J119: Note, when using this length to look up pressure lossses in the dripline,
C120: Not recommended | J120: only the flow going out of the emitters is used, and does not reflect true
C121: with pressures | J121: pressure loss during flushing. Pressure loss during flushing is self calculated
C122: greater than 45 psi | J122: in the cell below, or can be obtained from Geoflows Flushing spreadsheet.
A132: F29 Pump Sizing - Pressure loss through dripline
A133: =+'Worksht1 - Field Flow'!E25 -> Wasteflow PC - 1/2gph | B133: Dripline chosen on Worksheet 1 | F133: Wasteflow Classic
A134: =+'Worksht1 - Field Flow'!E22 -> 2 | B134: Spacing between drippers from worksheet 1 | F134: Wasteflow PC - 1/2gph
A135: =+'Worksht1 - Field Flow'!E39 -> 318 | B135: Longest length of run from worksheet 1 | F135: Wasteflow PC - 1 gph
A136: =IF($G$204=F133,C136,A145) -> 5.74 | C136: =IF($A$134=1,C139,E136) -> Dripline too long | E136: =IF($A$134=2,E139,G136) -> Dripline too long
A137: CLASSIC | B137: 12"/1.02gph | D137: 24"/1.02gph
A138: 0 | B138: 0 | D138: 0
A139: 50 | B139: 0.2179 | C139: =IF($A$135<=A139,B139,C140) -> Dripline too long | D139: 0.065 | E139: =IF($A$135<=A139,D139,E140) -> Dripline too long
A140: 100 | B140: 1.62236 | C140: =IF($A$135<=A140,B140,C141) -> Dripline too long | D140: 0.31994 | E140: =IF($A$135<=A140,D140,E141) -> Dripline too long
A141: 150 | B141: 5.49826 | C141: Dripline too long | D141: 1.0197 | E141: Dripline too long
A142: 200 | B142: 13.774 | C142: Dripline too long | D142: 2.539 | E142: Dripline too long
A143: 250 | C143: Dripline too long | D143: 4.5936 | E143: Dripline too long
A144: 300 | D144: 8.05329 | E144: Dripline too long
A145: =IF(A133=F134,C146,A164) -> 5.74
A146: PC 0.53 | C146: =IF($A$134=1,C148,E146) -> 5.74 | E146: =IF($A$134=1.5,E148,G146) -> 5.74 | G146: =IF($A$134=2,G148,I146) -> 5.74
B147: =+[2]Macros!L148 ->  | D147: =+[2]Macros!M148 ->  | F147: =+[2]Macros!N148 -> 
A148: 50 | B148: 0.14 | C148: =IF($A$135<=A148,B148,C149) -> 36 | D148: 0.1 | E148: =IF($A$135<=A148,D148,E149) -> 12 | F148: 0.05 | G148: =IF($A$135<=A148,F148,G149) -> 5.74
A149: 100 | B149: 0.9 | C149: 36 | D149: 0.3 | E149: 12 | F149: 0.153 | G149: 5.74
A150: 150 | B150: 2.9 | C150: 36 | D150: 1 | E150: 12 | F150: 0.49 | G150: 5.74
A151: 200 | B151: 6.77 | C151: 36 | D151: 2.3 | E151: 12 | F151: 1.12 | G151: 5.74
A152: 250 | B152: 13 | C152: 36 | D152: 4.49 | E152: 12 | F152: 2.15 | G152: 5.74
A153: 300 | B153: 22.66 | C153: 36 | D153: 7.64 | E153: 12 | F153: 3.66 | G153: 5.74
A154: 350 | B154: 36 | C154: 36 | D154: 12 | E154: 12 | F154: 5.74 | G154: 5.74
A155: 400 | B155: 53.96 | C155: 53.96 | D155: 17.9 | E155: 17.9 | F155: 8.5 | G155: 8.5
A156: 450 | B156: 70 | C156: 70 | D156: 25.44 | E156: 25.44 | F156: 12.03 | G156: 12.03
A157: 500 | C157: Dripline too long | D157: 35 | E157: 35 | F157: 16.42 | G157: 16.42
A158: 550 | D158: 46.6 | E158: 46.6 | F158: 21.79 | G158: 21.79
A159: 600 | D159: 60 | E159: 60 | F159: 28.24 | G159: 28.24
A160: 650 | E160: =+C157 -> Dripline too long | F160: 35.87 | G160: 35.87
A161: 700 | F161: 44.79 | G161: 44.79
A162: 750 | F162: 55.12 | G162: 55.12
A163: 800 | G163: =+C157 -> Dripline too long
A164: =IF($A$133=F135,C164,A176) -> Oops | C164: =IF($A$134=1,C166,E164) -> 21 | E164: =IF($A$134=1.5,E166,G164) -> 21 | G164: =IF($A$134=2,G166,I164) -> 21
A165: PC 1.0 gph
A166: =+A148 -> 50 | B166: 0.49 | C166: =IF($A$135<=A166,B166,C167) -> Dripline too long | D166: 0.65 | E166: =IF($A$135<=A166,D166,E167) -> 44.34 | F166: 0.1 | G166: =IF($A$135<=A166,F166,G167) -> 21
A167: =+A149 -> 100 | B167: 3.3 | C167: =IF($A$135<=A167,B167,C168) -> Dripline too long | D167: 1.15 | E167: =IF($A$135<=A167,D167,E168) -> 44.34 | F167: 0.559 | G167: =IF($A$135<=A167,F167,G168) -> 21
A168: 150 | B168: 10.79 | C168: Dripline too long | D168: 3.69 | E168: 44.34 | F168: 1.79 | G168: 21
A169: 200 | B169: 25 | C169: Dripline too long | D169: 8.6 | E169: 44.34 | F169: 4.11 | G169: 21
A170: 250 | B170: 49.5 | C170: Dripline too long | D170: 16.58 | E170: 44.34 | F170: 7.87 | G170: 21
A171: 300 | B171: 75 | C171: Dripline too long | D171: 28.22 | E171: 44.34 | F171: 13.41 | G171: 21
A172: 350 | C172: =+C157 -> Dripline too long | D172: 44.34 | E172: 44.34 | F172: 21 | G172: 21
A173: 400 | D173: 65 | E173: 65 | F173: 31.2 | G173: 31.2
A174: 450 | E174: =+C157 -> Dripline too long | F174: 44.16 | G174: 44.16
A175: 500 | F175: 60 | G175: 60
A176: Oops | G176: =+C157 -> Dripline too long

Sheet T2-Filter & Headworks
B2: Vortex Filters and Headworks | H2: BioDisc Filters and Headworks
B89: Points on filter curve
B91: 0
B92: 1 | C92: =0.6/2 -> 0.3
B93: 2 | C93: 0.6
B94: 3 | C94: 1.1
B95: 4 | C95: 1.5
B96: 5 | C96: 2.5
B97: 6 | C97: 4
B98: 7 | C98: 5.75
B99: 8 | C99: 7.5
B100: 9 | C100: 9.5
B101: 10 | C101: 11.5
B102: 11 | C102: 14.1
C104: AP4E-100
B105: 0 | C105: 0
B106: 5 | C106: 0.8
B107: 10 | C107: 2.2
B108: 15 | C108: 5.5
B109: 20 | C109: 10.5
B110: 25 | C110: 16.667
B111: 30 | C111: 24
C113: AP4E150-3 | E113: AP4E150-4
B114: 0 | C114: 0 | E114: 0
B115: 10 | C115: 0.7 | E115: 0.2
B116: 20 | C116: 2 | E116: 0.75
B117: 30 | C117: 4 | E117: 2
B118: 40 | C118: 6.5 | E118: 4
B119: 50 | C119: 9 | E119: 6.1
B120: 60 | E120: 8.4
C123: AP4E200-3 | E123: AP4E200-4
B124: 0 | C124: 0 | E124: 0
C125: 0.5 | E125: 0.25
B126: 20 | C126: 1 | E126: 0.5
C127: 1.5 | E127: 0.75
B128: 40 | C128: 2 | E128: 1
C129: 3.5 | E129: 2
B130: 60 | C130: 5 | E130: 3
C131: 7 | E131: 4
B132: 80 | C132: 9 | E132: 5
C133: 12 | E133: 7
B134: 100 | C134: 15 | E134: 9
B135: 120 | E135: 12

Sheet T3-Valves
B2: Solenoid valves
B3: Part Numbers | C3: Size
B4: SVLVB-100 | C4: 1"
B5: SVLVB-150 | C5: 1.5"
B6: SVLVB-200 | C6: 2"
B7: SVLVB-300 | C7: 3"
B9: Flow vs Pressure
B42: Hydraulic Valves
B44: Flow vs. Pressure
E45: Flow
C46: Part No. | D46: No. of Zones | E46: 10 gpm | G46: 20 gpm | I46: 30 gpm | K46: 40 gpm
E47: psi | F47: ft | G47: psi | H47: ft | I47: psi | J47: ft | K47: psi | L47: ft
C48: 4402 | D48: 2 zone | E48: 2 | F48: 4.62 | G48: 3 | H48: 6.93 | I48: 4.5 | J48: 10.4 | K48: 6.4 | L48: 14.8
C49: 4403 | D49: 3 zone | E49: 2 | F49: 4.62 | G49: 3 | H49: 6.93 | I49: 4.5 | J49: 10.4 | K49: 6.4 | L49: 14.8
C50: 4404 | D50: 4 zone | E50: 2 | F50: 4.62 | G50: 3 | H50: 6.93 | I50: 4.5 | J50: 10.4 | K50: 6.4 | L50: 14.8
C51: 4405 | D51: 5 zone | E51: 2.5 | F51: 5.8 | G51: 4.5 | H51: 10.4 | I51: 7.5 | J51: 17.3 | K51: na | L51: na
C52: 4406 | D52: 6 zone | E52: 2.5 | F52: 5.8 | G52: 4.5 | H52: 10.4 | I52: 7.5 | J52: 17.3 | K52: na | L52: na

Sheet T4-PVC PLUS
C2: Schedule 40 PVC Plastic Pipe
C3: (Pounds per square inch (PSI) per 100 ft. of pipe
C4: The pipe is Schedule 40 ASTM D1785, D2672, D1784
D5: ½” | F5: ¾” | H5: 1” | J5: 1 ¼” | L5: 1 ½” | N5: 2” | P5: 2 ½” | R5: 3” | T5: 4” | V5: 6”
D6: Velocity | E6: Pressure | F6: Velocity | G6: Pressure | H6: Velocity | I6: Pressure | J6: Velocity | K6: Pressure | L6: Velocity | M6: Pressure | N6: Velocity | O6: Pressure | P6: Velocity | Q6: Pressure | R6: Velocity | S6: Pressure | T6: Velocity | U6: Pressure | V6: Velocity | W6: Pressure
D7: FPS | E7: Drop PSI | F7: FPS | G7: Drop PSI | H7: FPS | I7: Drop PSI | J7: FPS | K7: Drop PSI | L7: FPS | M7: Drop PSI | N7: FPS | O7: Drop PSI | P7: FPS | Q7: Drop PSI | R7: FPS | S7: Drop PSI | T7: FPS | U7: Drop PSI | V7: FPS | W7: Drop PSI
C8: Flow
C9: GPM
C10: 1 | D10: 1.05 | E10: 0.43 | F10: 0.6 | G10: 0.11 | H10: 0.37 | I10: 0.03
C11: 2 | D11: 2.11 | E11: 1.55 | F11: 1.2 | G11: 0.39 | H11: 0.74 | I11: 0.12 | J11: 0.43 | K11: 0.03
C12: 3 | D12: 3.17 | E12: 3.27 | F12: 1.8 | G12: 0.83 | H12: 1.11 | I12: 0.26 | J12: 0.64 | K12: 0.07 | L12: 0.47 | M12: 0.03
C13: 4 | D13: 4.22 | E13: 5.57 | F13: 2.41 | G13: 1.42 | H13: 1.48 | I13: 0.44 | J13: 0.86 | K13: 0.11 | L13: 0.63 | M13: 0.05
C14: 5 | D14: 5.28 | E14: 8.42 | F14: 3.01 | G14: 2.15 | H14: 1.86 | I14: 0.66 | J14: 1.07 | K14: 0.17 | L14: 0.79 | M14: 0.08
C15: 6 | D15: 6.33 | E15: 11.81 | F15: 3.61 | G15: 3.01 | H15: 2.23 | I15: 0.93 | J15: 1.29 | K15: 0.24 | L15: 0.95 | M15: 0.11 | N15: 0.57 | O15: 0.03
C16: 8 | D16: 8.44 | E16: 20.1 | F16: 4.81 | G16: 5.12 | H16: 2.97 | I16: 1.58 | J16: 1.72 | K16: 0.42 | L16: 1.26 | M16: 0.2 | N16: 0.76 | O16: 0.06 | P16: 0.54 | Q16: 0.02
C17: 10 | D17: 10.55 | E17: 30.37 | F17: 6.02 | G17: 7.73 | H17: 3.71 | I17: 2.39 | J17: 2.15 | K17: 0.63 | L17: 1.58 | M17: 0.3 | N17: 0.96 | O17: 0.09 | P17: 0.67 | Q17: 0.04
C18: 15 | F18: 9.02 | G18: 16.37 | H18: 5.57 | I18: 5.06 | J18: 3.22 | K18: 1.33 | L18: 2.36 | M18: 0.63 | N18: 1.43 | O18: 0.19 | P18: 1.01 | Q18: 0.08 | R18: 0.65 | S18: 0.03
C19: 20 | H19: 7.42 | I19: 8.61 | J19: 4.29 | K19: 2.27 | L19: 3.15 | M19: 1.07 | N19: 1.91 | O19: 0.32 | P19: 1.34 | Q19: 0.13 | R19: 0.87 | S19: 0.05
C20: 25 | H20: 9.28 | I20: 13.01 | J20: 5.36 | K20: 3.42 | L20: 3.94 | M20: 1.63 | N20: 2.39 | O20: 0.48 | P20: 1.67 | Q20: 0.2 | R20: 1.08 | S20: 0.07
C21: 30 | H21: 11.14 | I21: 18.22 | J21: 6.43 | K21: 4.8 | L21: 4.73 | M21: 2.27 | N21: 2.87 | O21: 0.67 | P21: 2.01 | Q21: 0.28 | R21: 1.3 | S21: 0.1
C22: 35 | J22: 7.51 | K22: 6.38 | L22: 5.52 | M22: 3.01 | N22: 3.35 | O22: 0.89 | P22: 2.35 | Q22: 0.38 | R22: 1.52 | S22: 0.13 | T22: 0.88 | U22: 0.03
C23: 40 | J23: 8.58 | K23: 8.17 | L23: 6.3 | M23: 3.88 | N23: 3.82 | O23: 1.14 | P23: 2.64 | Q23: 0.48 | R23: 1.73 | S23: 0.17 | T23: 1.01 | U23: 0.04
C24: 45 | J24: 9.65 | K24: 10.16 | L24: 7.09 | M24: 4.8 | N24: 4.3 | O24: 1.42 | P24: 3.01 | Q24: 0.6 | R24: 1.95 | S24: 0.21 | T24: 1.13 | U24: 0.05
C25: 50 | J25: 10.72 | K25: 12.35 | L25: 7.88 | M25: 5.83 | N25: 4.78 | O25: 1.73 | P25: 3.35 | Q25: 0.73 | R25: 2.17 | S25: 0.25 | T25: 1.26 | U25: 0.07
C26: 60 | L26: 9.46 | M26: 8.17 | N26: 5.74 | O26: 2.42 | P26: 4.02 | Q26: 1.02 | R26: 2.6 | S26: 0.35 | T26: 1.51 | U26: 0.09
C27: 70 | L27: 11.03 | M27: 10.87 | N27: 6.69 | O27: 3.22 | P27: 4.69 | Q27: 1.36 | R27: 3.04 | S27: 0.47 | T27: 1.76 | U27: 0.12
C28: 80 | N28: 7.65 | O28: 4.13 | P28: 5.36 | Q28: 1.74 | R28: 3.47 | S28: 0.6 | T28: 2.02 | U28: 0.16
C29: 90 | N29: 8.6 | O29: 5.13 | P29: 6.03 | Q29: 2.16 | R29: 3.91 | S29: 0.75 | T29: 2.27 | U29: 0.2
C30: 100 | N30: 9.56 | O30: 6.23 | P30: 6.7 | Q30: 2.63 | R30: 4.34 | S30: 0.91 | T30: 2.52 | U30: 0.24 | V30: 1.11 | W30: 0.03
C31: 125 | N31: 11.95 | O31: 9.42 | P31: 8.38 | Q31: 3.97 | R31: 5.42 | S31: 1.38 | T31: 3.15 | U31: 0.37 | V31: 1.39 | W31: 0.05
C32: 150 | P32: 10.05 | Q32: 5.56 | R32: 6.51 | S32: 1.93 | T32: 3.78 | U32: 0.51 | V32: 1.67 | W32: 0.07
C33: 175 | R33: 7.59 | S33: 2.57 | T33: 4.41 | U33: 0.68 | V33: 1.94 | W33: 0.09
C34: 200 | R34: 8.68 | S34: 3.4 | T34: 5.04 | U34: 0.9 | V34: 2.22 | W34: 0.12
C36: Note: Values in shaded areas are at velocities over 5 feet per second and should be selected with caution. | M36: Note: Values in shaded areas are at velocities over 5 feet per second and should be selected with caution.
C37: PVC Schedule 40 | E37: 0.5
C41: Equivalent Lengths - fittings
C44: Approximate friction loss for PVC and CPVC fittings in Equivalent Length in feet of Straight Pipe for water can be found in the table below:
C46: Friction Loss Equivalent Length - feet of Straight Pipe (ft)
C47: Fitting | D47: Nominal Pipe Size (inches)
D48: 0.5 | E48: 0.75 | F48: 1 | G48: 1.25 | H48: 1.5 | I48: 2 | J48: 2.5 | K48: 3 | L48: 4 | M48: 6 | N48: 8 | O48: 10 | P48: 12
C49: 90o Elbow, long sweep radius | D49: 1.5 | E49: 2 | F49: 2.5 | G49: 3.8 | H49: 4 | I49: 5.7 | J49: 6.9 | K49: 7.9 | L49: 12 | M49: 18 | N49: 22 | O49: 26 | P49: 32
C50: 90o Elbow, standard sharp inside radius | D50: 3.6 | E50: 4.5 | F50: 5.3 | G50: 6.7 | H50: 7.5 | I50: 8.6 | K50: 11.1 | L50: 13.1
C51: 45o Elbow | D51: 0.8 | E51: 1.1 | F51: 1.4 | G51: 1.8 | H51: 2.1 | I51: 2.6 | J51: 3.1 | K51: 4 | L51: 5.1 | M51: 8 | N51: 10.6 | O51: 13.5 | P51: 15.5
C52: Gatevalve | D52: 0.3 | E52: 0.4 | F52: 0.6 | G52: 0.8 | H52: 1 | I52: 1.5 | J52: 2 | K52: 3
C53: Tee Flow - Run | D53: 1 | E53: 1.4 | F53: 1.7 | G53: 2.3 | H53: 2.7 | I53: 4.3 | J53: 5.1 | K53: 6.2 | L53: 8.3 | M53: 12.5 | N53: 16.5 | O53: 17.5 | P53: 20
C54: Tee Flow - Branch | D54: 4 | E54: 5 | F54: 6 | G54: 7 | H54: 8 | I54: 12 | J54: 15 | K54: 16 | L54: 22 | M54: 32.7 | N54: 49 | O54: 57 | P54: 67
C55: Male/Female Adapter | D55: 1 | E55: 1.5 | F55: 2 | G55: 2.8 | H55: 3.5 | I55: 4.5 | J55: 5.5 | K55: 6.5 | L55: 9 | M55: 14
C56: The table can also used for other thermoplastic pipes materials with similar design.
C57: The values can be used to calculate pressure loss with the Equivalent Pipe Length Method.
C59: Screwed Fittings - equivalent length in feet
C60: Equivalent length (in feet) of straight pipe for fittings like bends, returns, tees and valves. (Pipe size in inches)
C77: Equivalent Length of PVC Straight Pipe for Various Fittings
C78: in feet, turbulent flow only
D80: Pipe Size, Inches
C81: FITTINGS | D81: 1 | E81: 2 | F81: 3 | G81: 4 | H81: 5 | I81: 6 | J81: 8 | K81: 10 | L81: 12 | M81: 14 | N81: 16 | O81: 18 | P81: 20 | Q81: 24
C82: 90° Elbow | D82: 2.62 | E82: 5.17 | F82: 7.67 | G82: 10.1 | H82: 12.6 | I82: 15.2 | J82: 20 | K82: 25.1 | L82: 29.8 | M82: 32.8 | N82: 37.5 | O82: 42.2 | P82: 47 | Q82: 56.6
C83: 45° Elbow | D83: 1.4 | E83: 2.76 | F83: 4.09 | G83: 5.37 | H83: 6.73 | I83: 8.09 | J83: 10.6 | K83: 13.4 | L83: 15.9 | M83: 17.5 | N83: 20 | O83: 22.5 | P83: 25.1 | Q83: 30.2
C84: Tee-branch flow | D84: 5.25 | E84: 10.3 | F84: 15.3 | G84: 20.1 | H84: 25.2 | I84: 30.3 | J84: 39.9 | K84: 50.1 | L84: 59.7 | M84: 65.6 | N84: 75 | O84: 84.4 | P84: 94.1 | Q84: 113
C85: Tee-through flow | D85: 1.75 | E85: 3.45 | F85: 5.11 | G85: 6.71 | H85: 8.41 | I85: 10.1 | J85: 13.3 | K85: 16.7 | L85: 19.9 | M85: 21.8 | N85: 25 | O85: 28.1 | P85: 31.4 | Q85: 37.7
C86: Globe Valve, full open | D86: 29.7 | E86: 58.6 | F86: 86.9 | G86: 114 | H86: 143 | I86: 172 | J86: 226 | K86: 284 | L86: 338 | M86: 372 | N86: 425 | O86: 478 | P86: 533 | Q86: 641
C87: Swing Check Valve, full open | D87: 8.74 | E87: 17.2 | F87: 25.5 | G87: 33.6 | H87: 42.1 | I87: 50.5 | J87: 33.3 | K87: 41.8 | L87: 49.7 | M87: 54.7 | N87: 62.5 | O87: 70.3 | P87: 78.4 | Q87: 94.3
C88: Gate Valve, full open | D88: 0.7 | E88: 1.38 | F88: 2.04 | G88: 2.68 | H88: 3.36 | I88: 4.04 | J88: 5.32 | K88: 6.68 | L88: 7.96 | M88: 8.75 | N88: 10 | O88: 16.9 | P88: 12.5 | Q88: 15.1
C90: Handbook of PVC Pipe, 4th Edition, 2001
C91: Table 9.1
C93: Supply Line: | K93: Fittings | L93: Length
C94: 90o Elbow, long sweep radius | K94: 1
C95: 90o Elbow, standard sharp inside radius | K95: 6 | L95: 60.6
C96: 45o Elbow | K96: 4 | L96: 21.48
C97: Gatevalve
C98: Tee Flow - Run | K98: 0 | L98: 0
C99: Tee Flow - Branch | K99: 0 | L99: 0
C100: Male/Female Adapter | K100: 0 | L100: 0
C101: Globe Valve, full open | K101: 1 | L101: 114
C102: Swing Check Valve, full open | K102: 1 | L102: 33.6
C103: Gate Valve, full open | K103: 1 | L103: 2.68
C105: Total Equivalent Length of Pipe | L105: 232.36
C107: Return Line: | K107: Fittings | L107: Length
C108: 90o Elbow, long sweep radius
C109: 90o Elbow, standard sharp inside radius | K109: 6 | L109: 60.6
C110: 45o Elbow | K110: 4 | L110: 21.48
C111: Gatevalve
C112: Tee Flow - Run | K112: 0 | L112: 0
C113: Tee Flow - Branch | K113: 0 | L113: 0
C114: Male/Female Adapter | K114: 0 | L114: 0
C115: Globe Valve, full open | K115: 1 | L115: 114
C116: Swing Check Valve, full open | K116: 1 | L116: 33.6
C117: Gate Valve, full open | K117: 1 | L117: 2.68
C119: Total Equivalent Length of Pipe | L119: 232.36
C123: Tank Volume
D124: The formula below determines total volume in a tank and ot actual useable volume Remember the top of the tank is not
D125: is reserved for overflow, and the bottom of the tank is below the pump uptake.
D126: Rectangular Tank
D127: 1 | E127: length in ft x width in ft = | H127: area of tank
D128: 2 | E128: area of tank x 7.48 (number of gallons in a cubic ft.) = | J128: Number of gallons per ft.
D129: 3 | E129: Number of gallons per ft / 12 = | H129: number of gallons per inch
E131: Example: | F131: 7ft long x 4 ft wide
F132: 7 x 4 = | G132: 28 | H132: sqiuare ft. or 28 cubic ft at one ft of depth
F133: 28 x 7.5 = | G133: 210 gallons per ft
F134: 210 / 12 = | G134: 17.5 gallons per inch
D136: Circular Tank
D137: 1 | E137: Volume in gallons for cylindar in a tank = (diameter x diameter x .785) x (height - freeboard area) x 7.48 | O137: Note: The 7.48 converts it from area to gallons
E138: Alternatively one can use | G138: Pi(radius) | I138: (3.14 x (radius) ) x (height - freeboard area) x 7.48
D139: 2 | E139: If there is a cone in the tank then add to the volume above:
E140: ((diameter x diameter x .785) x (height of cone) x 7.48) / 3
E141: Alternatively one can use | G141: Pi(radius) | I141: (3.14(r) ) x (height of cone) x 7.48) / 3
C145: Dripline Length of run vs. Pump run time
D147: Wasteflow PC 1/2 gph 24in spacing (WFPC16-2-24)
D148: Later length (ft.) | G148: 651 | H148: 300 | I148: 200 | J148: ft
D149: Fill rate/pump dependent (ft/sec.) | G149: 1 | H149: 1 | I149: 1 | J149: ft./sec
D150: Time to fill (mins) | G150: =+G148/G149/60 -> 10.85 | H150: =+H148/H149/60 -> 5 | I150: =+I148/I149/60 -> 3.333333333 | J150: mins.
D152: Pump run time (mins) | G152: 15 | H152: 15 | I152: 15 | J152: mins.
D153: Fill time as a percent of run time | G153: =+G150/G152 -> 0.7233333333 | H153: =+H150/H152 -> 0.3333333333 | I153: =+I150/I152 -> 0.2222222222
D155: Pump run time (mins) | G155: 40 | H155: 40 | I155: 40 | J155: mins.
D156: Fill time as a percent of run time | G156: =+G150/G155 -> 0.27125 | H156: =+H150/H155 -> 0.125 | I156: =+I150/I155 -> 0.08333333333

Sheet T5-Flow meter
C2: FLOW METER
